Publisher Label,Publisher URI,Body Name,Service Area Categorisation,Service Division Categorisation,Expenses Type,Date,Transaction Number,Amount,Capital or Revenue,Supplier Name,Merchant Category
Peterborough,http://opendatacommunities.org/id/unitary-authority/peterborough,Peterborough City Council,Children's & Education Services - Children's Social Care,Children Looked After,Supplies and Services - Transfer Payments,01/02/2012 00:00,374433,3703.57,REVENUE,Fosterplus Ltd,
Peterborough,http://opendatacommunities.org/id/unitary-authority/peterborough,Peterborough City Council,Support Services,Support Services,Supplies and Services,01/02/2012 00:00,377084,3231.25,REVENUE,Carter Roe ltd,
Peterborough,http://opendatacommunities.org/id/unitary-authority/peterborough,Peterborough City Council,"Highways, Roads & Transport Services",Parking Services,Employees,01/02/2012 00:00,400223,630,REVENUE,Unity Recruitment Ltd,
Peterborough,http://opendatacommunities.org/id/unitary-authority/peterborough,Peterborough City Council,"Highways, Roads & Transport Services",Parking Services,Employees,01/02/2012 00:00,413209,806.4,REVENUE,Unity Recruitment Ltd,
Peterborough,http://opendatacommunities.org/id/unitary-authority/peterborough,Peterborough City Council,Children's & Education Services - Children's Social Care,Children Looked After,Supplies and Services - Transfer Payments,01/02/2012 00:00,416089,7140,REVENUE,MJ Childrens Services,
Peterborough,http://opendatacommunities.org/id/unitary-authority/peterborough,Peterborough City Council,Capital,Capital,Capital Pending Update to BS,01/02/2012 00:00,419198,7490.4,CAPITAL,Princebuild Limited,
Peterborough,http://opendatacommunities.org/id/unitary-authority/peterborough,Peterborough City Council,Capital,Capital,Capital Pending Update to BS,01/02/2012 00:00,422417,7723.95,CAPITAL,Princebuild Limited,
Peterborough,http://opendatacommunities.org/id/unitary-authority/peterborough,Peterborough City Council,Deficit/(Surplus) on Trading Undertakings,Trading Account Surpluses & Deficits,Supplies and Services,01/02/2012 00:00,424070,879,REVENUE,Barron Clark Castings Ltd,
Peterborough,http://opendatacommunities.org/id/unitary-authority/peterborough,Peterborough City Council,Support Services,Support Services,Supplies and Services,01/02/2012 00:00,426877,666,REVENUE,Key People Ltd,
Peterborough,http://opendatacommunities.org/id/unitary-authority/peterborough,Peterborough City Council,Capital,Capital,Capital Pending Update to BS,01/02/2012 00:00,426902,13200,CAPITAL,Mott Macdonald,
Peterborough,http://opendatacommunities.org/id/unitary-authority/peterborough,Peterborough City Council,Children's & Education Services - Children's Social Care,Children Looked After,Employees,01/02/2012 00:00,427007,911.27,REVENUE,Advantage Healthcare Nursing & Care Ltd,
Peterborough,http://opendatacommunities.org/id/unitary-authority/peterborough,Peterborough City Council,Children's & Education Services - Children's Social Care,Children Looked After,Employees,01/02/2012 00:00,427009,643.8,REVENUE,Frontline Staffing Ltd,
Peterborough,http://opendatacommunities.org/id/unitary-authority/peterborough,Peterborough City Council,"Highways, Roads & Transport Services",Public Transport,Supplies and Services,01/02/2012 00:00,427011,2371.2,REVENUE,Spacemaster Partitions Ltd,
Peterborough,http://opendatacommunities.org/id/unitary-authority/peterborough,Peterborough City Council,Children's & Education Services - Children's Social Care,Other Children's & Families Services,Employees,01/02/2012 00:00,427017,830.8,REVENUE,Randstad Care Ltd,
Peterborough,http://opendatacommunities.org/id/unitary-authority/peterborough,Peterborough City Council,Children's & Education Services - Children's Social Care,Children Looked After,Employees,01/02/2012 00:00,427018,1122.79,REVENUE,Randstad Care Ltd,
Peterborough,http://opendatacommunities.org/id/unitary-authority/peterborough,Peterborough City Council,Children's & Education Services - Children's Social Care,Other Children's & Families Services,Employees,01/02/2012 00:00,427024,1489.54,REVENUE,Randstad Care Ltd,
Peterborough,http://opendatacommunities.org/id/unitary-authority/peterborough,Peterborough City Council,Children's & Education Services - Children's Social Care,Children Looked After,Employees,01/02/2012 00:00,427026,846.38,REVENUE,Randstad Care Ltd,
Peterborough,http://opendatacommunities.org/id/unitary-authority/peterborough,Peterborough City Council,Children's & Education Services - Children's Social Care,Children Looked After,Employees,01/02/2012 00:00,427027,874,REVENUE,Randstad Care Ltd,
Peterborough,http://opendatacommunities.org/id/unitary-authority/peterborough,Peterborough City Council,Children's & Education Services - Children's Social Care,Other Children's & Families Services,Employees,01/02/2012 00:00,427028,1012.54,REVENUE,Randstad Care Ltd,
Peterborough,http://opendatacommunities.org/id/unitary-authority/peterborough,Peterborough City Council,Children's & Education Services - Children's Social Care,Children Looked After,Supplies and Services,01/02/2012 00:00,426992,1224,REVENUE,Smooth Operators (Peterborough) Ltd,
Peterborough,http://opendatacommunities.org/id/unitary-authority/peterborough,Peterborough City Council,Housing Services,Private Sector Housing Renewal,Supplies and Services,01/02/2012 00:00,426818,1024.25,REVENUE,Deprez Developments,
Peterborough,http://opendatacommunities.org/id/unitary-authority/peterborough,Peterborough City Council,Support Services,Support Services,Employees,01/02/2012 00:00,426829,815.72,REVENUE,Venn Group Ltd,
Peterborough,http://opendatacommunities.org/id/unitary-authority/peterborough,Peterborough City Council,Children's & Education Services - Education,Support Services & Management Costs,Supplies and Services,01/02/2012 00:00,426830,845.75,REVENUE,Orton Hall Hotel,
Peterborough,http://opendatacommunities.org/id/unitary-authority/peterborough,Peterborough City Council,Adult Social Care,Other Adult Services,Third Party Payments,01/02/2012 00:00,427239,2099.4,REVENUE,Frontier Medical,
Peterborough,http://opendatacommunities.org/id/unitary-authority/peterborough,Peterborough City Council,Cultural and Related Services,Culture & Heritage,Supplies and Services,01/02/2012 00:00,427249,1200,REVENUE,Landsman's Ltd,
Peterborough,http://opendatacommunities.org/id/unitary-authority/peterborough,Peterborough City Council,Children's & Education Services - Children's Social Care,Children Looked After,Supplies and Services - Transfer Payments,01/02/2012 00:00,427255,86727.5,REVENUE,"Alderwood, LLA Ltd",
Peterborough,http://opendatacommunities.org/id/unitary-authority/peterborough,Peterborough City Council,Planning Services,Community Safety (CCTV),Supplies and Services,01/02/2012 00:00,427257,8892.16,REVENUE,Quadrant Security Group Ltd,
Peterborough,http://opendatacommunities.org/id/unitary-authority/peterborough,Peterborough City Council,Environmental and Regulatory Services,Environmental Initiatives,Supplies and Services,01/02/2012 00:00,427169,18500,REVENUE,Peterborough Environment City Trust,
Peterborough,http://opendatacommunities.org/id/unitary-authority/peterborough,Peterborough City Council,Support Services,Support Services,Supplies and Services,01/02/2012 00:00,427346,999,REVENUE,Key People Ltd,
Peterborough,http://opendatacommunities.org/id/unitary-authority/peterborough,Peterborough City Council,Children's & Education Services - Children's Social Care,Support Services & Management Costs,Supplies and Services,01/02/2012 00:00,427266,9558.04,REVENUE,National Youth Advocacy Serv,
Peterborough,http://opendatacommunities.org/id/unitary-authority/peterborough,Peterborough City Council,Support Services,Support Services,Supplies and Services,01/02/2012 00:00,427268,759.38,REVENUE,AXA PPP Healthcare OHS Ltd,
Peterborough,http://opendatacommunities.org/id/unitary-authority/peterborough,Peterborough City Council,"Highways, Roads & Transport Services",Street Lighting,Supplies and Services,01/02/2012 00:00,427271,16154.35,REVENUE,Volker Highways MEWS Ltd,
Peterborough,http://opendatacommunities.org/id/unitary-authority/peterborough,Peterborough City Council,"Highways, Roads & Transport Services",Street Lighting,Supplies and Services,01/02/2012 00:00,427285,62510.3,REVENUE,Volker Highways MEWS Ltd,
Peterborough,http://opendatacommunities.org/id/unitary-authority/peterborough,Peterborough City Council,Children's & Education Services - Children's Social Care,Children Looked After,Supplies and Services,01/02/2012 00:00,427463,8326,REVENUE,Cambs & P'boro NHS Foundation Trust,
Peterborough,http://opendatacommunities.org/id/unitary-authority/peterborough,Peterborough City Council,Children's & Education Services - Children's Social Care,Family Support Services,Third Party Payments,01/02/2012 00:00,427465,77355.79,REVENUE,Cambs & P'boro NHS Foundation Trust,
Peterborough,http://opendatacommunities.org/id/unitary-authority/peterborough,Peterborough City Council,Adult Social Care,Service Strategy,Supplies and Services,01/02/2012 00:00,427485,16200,REVENUE,Veredus,
Peterborough,http://opendatacommunities.org/id/unitary-authority/peterborough,Peterborough City Council,Children's & Education Services - Children's Social Care,Other Children's & Families Services,Supplies and Services,01/02/2012 00:00,427487,12750,REVENUE,Cambs & P'boro NHS Foundation Trust,
Peterborough,http://opendatacommunities.org/id/unitary-authority/peterborough,Peterborough City Council,"Highways, Roads & Transport Services",Street Lighting,Supplies and Services,01/02/2012 00:00,427353,856.8,REVENUE,UK Power Networks (operations) Ltd,
Peterborough,http://opendatacommunities.org/id/unitary-authority/peterborough,Peterborough City Council,"Highways, Roads & Transport Services",Street Lighting,Supplies and Services,01/02/2012 00:00,427355,1118.4,REVENUE,UK Power Networks (operations) Ltd,
Peterborough,http://opendatacommunities.org/id/unitary-authority/peterborough,Peterborough City Council,"Highways, Roads & Transport Services",Street Lighting,Supplies and Services,01/02/2012 00:00,427356,589.2,REVENUE,UK Power Networks (operations) Ltd,
Peterborough,http://opendatacommunities.org/id/unitary-authority/peterborough,Peterborough City Council,"Highways, Roads & Transport Services",Street Lighting,Supplies and Services,01/02/2012 00:00,427357,662.4,REVENUE,UK Power Networks (operations) Ltd,
Peterborough,http://opendatacommunities.org/id/unitary-authority/peterborough,Peterborough City Council,"Highways, Roads & Transport Services",Street Lighting,Supplies and Services,01/02/2012 00:00,427360,589.2,REVENUE,UK Power Networks (operations) Ltd,
Peterborough,http://opendatacommunities.org/id/unitary-authority/peterborough,Peterborough City Council,"Highways, Roads & Transport Services",Parking Services,Premises,01/02/2012 00:00,427384,654,REVENUE,Inaparc,
Peterborough,http://opendatacommunities.org/id/unitary-authority/peterborough,Peterborough City Council,Children's & Education Services - Children's Social Care,Support Services & Management Costs,Supplies and Services,01/02/2012 00:00,427611,2500,REVENUE,Redacted Personal Data,
Peterborough,http://opendatacommunities.org/id/unitary-authority/peterborough,Peterborough City Council,Children's & Education Services - Children's Social Care,Support Services & Management Costs,Supplies and Services,01/02/2012 00:00,427613,3000,REVENUE,Redacted Personal Data,
Peterborough,http://opendatacommunities.org/id/unitary-authority/peterborough,Peterborough City Council,Cultural and Related Services,Waste Collection,Supplies and Services,01/02/2012 00:00,427617,23434.92,REVENUE,Biffa Waste Services Ltd,
Peterborough,http://opendatacommunities.org/id/unitary-authority/peterborough,Peterborough City Council,Support Services,Support Services,Supplies and Services,01/02/2012 00:00,427649,5940,REVENUE,Advanced Technologies International Ltd,
Peterborough,http://opendatacommunities.org/id/unitary-authority/peterborough,Peterborough City Council,Children's & Education Services - Children's Social Care,Children Looked After,Transport,01/02/2012 00:00,427656,1200,REVENUE,Stagecoach in Peterborough,
Peterborough,http://opendatacommunities.org/id/unitary-authority/peterborough,Peterborough City Council,Children's & Education Services - Education,Secondary,Transport,01/02/2012 00:00,427665,1200,REVENUE,Stagecoach in Peterborough,
Peterborough,http://opendatacommunities.org/id/unitary-authority/peterborough,Peterborough City Council,"Highways, Roads & Transport Services",Public Transport,Supplies and Services,01/02/2012 00:00,427845,3677,REVENUE,Stagecoach in Peterborough,
Peterborough,http://opendatacommunities.org/id/unitary-authority/peterborough,Peterborough City Council,Children's & Education Services - Children's Social Care,Children Looked After,Supplies and Services - Transfer Payments,01/02/2012 00:00,427846,763.06,REVENUE,Argos Business Solutions,
Peterborough,http://opendatacommunities.org/id/unitary-authority/peterborough,Peterborough City Council,"Highways, Roads & Transport Services",Public Transport,Supplies and Services,01/02/2012 00:00,427847,3108,REVENUE,Stagecoach in Peterborough,
Peterborough,http://opendatacommunities.org/id/unitary-authority/peterborough,Peterborough City Council,Support Services,Support Services,Employees,01/02/2012 00:00,427802,7883.45,REVENUE,Brook Street Bureau Plc,
Peterborough,http://opendatacommunities.org/id/unitary-authority/peterborough,Peterborough City Council,Support Services,Support Services,Employees,01/02/2012 00:00,427803,1879.2,REVENUE,Brook Street Bureau Plc,
Peterborough,http://opendatacommunities.org/id/unitary-authority/peterborough,Peterborough City Council,Children's & Education Services - Education,More than one Service Division,Supplies and Services,01/02/2012 00:00,427814,5950,REVENUE,Redacted Personal Data,
Peterborough,http://opendatacommunities.org/id/unitary-authority/peterborough,Peterborough City Council,Children's & Education Services - Children's Social Care,Family Support Services,Supplies and Services,01/02/2012 00:00,427875,576.4,REVENUE,Saga Homecare,
Peterborough,http://opendatacommunities.org/id/unitary-authority/peterborough,Peterborough City Council,Children's & Education Services - Children's Social Care,Family Support Services,Supplies and Services,01/02/2012 00:00,427876,1090.69,REVENUE,Saga Homecare,
Peterborough,http://opendatacommunities.org/id/unitary-authority/peterborough,Peterborough City Council,More than one Service Area Category,More than one Service Division,Supplies and Services,01/02/2012 00:00,428107,614.13,REVENUE,TNT Post Midlands Ltd,
Peterborough,http://opendatacommunities.org/id/unitary-authority/peterborough,Peterborough City Council,"Highways, Roads & Transport Services",Public Transport,Supplies and Services,01/02/2012 00:00,428019,34588.81,REVENUE,Stagecoach in Peterborough,
Peterborough,http://opendatacommunities.org/id/unitary-authority/peterborough,Peterborough City Council,Children's & Education Services - Children's Social Care,Children Looked After,Supplies and Services - Transfer Payments,01/02/2012 00:00,428652,11957.01,REVENUE,Continuum Care & Educ. Group.,
Peterborough,http://opendatacommunities.org/id/unitary-authority/peterborough,Peterborough City Council,Children's & Education Services - Children's Social Care,Other Children's & Families Services,Employees,01/02/2012 00:00,428680,1894.99,REVENUE,Sanctuary Personnel Ltd,
Peterborough,http://opendatacommunities.org/id/unitary-authority/peterborough,Peterborough City Council,Planning Services,Economic Development,Employees,01/02/2012 00:00,428709,2970,REVENUE,Macdonald & Company,
Peterborough,http://opendatacommunities.org/id/unitary-authority/peterborough,Peterborough City Council,"Highways, Roads & Transport Services","Transport planning, policy and strategy",Employees,01/02/2012 00:00,428887,1562.71,REVENUE,The Synergy Group,
Peterborough,http://opendatacommunities.org/id/unitary-authority/peterborough,Peterborough City Council,Planning Services,Economic Development,Employees,01/02/2012 00:00,428892,1191.29,REVENUE,The Synergy Group,
Peterborough,http://opendatacommunities.org/id/unitary-authority/peterborough,Peterborough City Council,Planning Services,Economic Development,Employees,01/02/2012 00:00,428894,759.28,REVENUE,The Synergy Group,
Peterborough,http://opendatacommunities.org/id/unitary-authority/peterborough,Peterborough City Council,Planning Services,Economic Development,Employees,01/02/2012 00:00,428895,1080.46,REVENUE,The Synergy Group,
Peterborough,http://opendatacommunities.org/id/unitary-authority/peterborough,Peterborough City Council,Planning Services,Economic Development,Employees,01/02/2012 00:00,428896,2151.29,REVENUE,The Synergy Group,
Peterborough,http://opendatacommunities.org/id/unitary-authority/peterborough,Peterborough City Council,"Highways, Roads & Transport Services","Environmental, Safety & Routine Maintenance",Supplies and Services,01/02/2012 00:00,429082,3440.52,REVENUE,ADC (East Anglia) Ltd,
Peterborough,http://opendatacommunities.org/id/unitary-authority/peterborough,Peterborough City Council,"Highways, Roads & Transport Services",Public Transport,Supplies and Services,01/02/2012 00:00,428999,15000,REVENUE,First Eastern Counties Buses Ltd,
Peterborough,http://opendatacommunities.org/id/unitary-authority/peterborough,Peterborough City Council,Deficit/(Surplus) on Trading Undertakings,Trading Account Surpluses & Deficits,Supplies and Services,01/02/2012 00:00,428850,1156.5,REVENUE,Barron Clark Castings Ltd,
Peterborough,http://opendatacommunities.org/id/unitary-authority/peterborough,Peterborough City Council,Children's & Education Services - Children's Social Care,Family Support Services,Supplies and Services,01/02/2012 00:00,428860,603.88,REVENUE,Sahara Community Care Services,
Peterborough,http://opendatacommunities.org/id/unitary-authority/peterborough,Peterborough City Council,Children's & Education Services - Children's Social Care,Other Children's & Families Services,Employees,01/02/2012 00:00,429024,1898.4,REVENUE,Capita Resourcing Ltd,
Peterborough,http://opendatacommunities.org/id/unitary-authority/peterborough,Peterborough City Council,Children's & Education Services - Children's Social Care,Other Children's & Families Services,Employees,01/02/2012 00:00,429025,1874.68,REVENUE,Capita Resourcing Ltd,
Peterborough,http://opendatacommunities.org/id/unitary-authority/peterborough,Peterborough City Council,Children's & Education Services - Children's Social Care,Support Services & Management Costs,Supplies and Services,01/02/2012 00:00,429069,720,REVENUE,"Jerman, Mr Anthony",
Peterborough,http://opendatacommunities.org/id/unitary-authority/peterborough,Peterborough City Council,Children's & Education Services - Education,Primary,Transport,01/02/2012 00:00,429127,1083.6,REVENUE,A2B Euro Cars,
Peterborough,http://opendatacommunities.org/id/unitary-authority/peterborough,Peterborough City Council,Children's & Education Services - Children's Social Care,Other Children's & Families Services,Supplies and Services,01/02/2012 00:00,428992,3717.25,REVENUE,R S P LTD,
Peterborough,http://opendatacommunities.org/id/unitary-authority/peterborough,Peterborough City Council,Planning Services,Recreation & Sport,Supplies and Services,01/02/2012 00:00,429507,1182.29,REVENUE,Siemens Financial Services Ltd,
Peterborough,http://opendatacommunities.org/id/unitary-authority/peterborough,Peterborough City Council,Housing Services,Homelessness,Supplies and Services,01/02/2012 00:00,429513,559.5,REVENUE,Restover Lodge Hotel,
Peterborough,http://opendatacommunities.org/id/unitary-authority/peterborough,Peterborough City Council,Housing Services,Homelessness,Supplies and Services,01/02/2012 00:00,429514,851.5,REVENUE,Restover Lodge Hotel,
Peterborough,http://opendatacommunities.org/id/unitary-authority/peterborough,Peterborough City Council,Planning Services,Community Development,Supplies and Services,01/02/2012 00:00,429518,1000,REVENUE,Winyates Primary School,
Peterborough,http://opendatacommunities.org/id/unitary-authority/peterborough,Peterborough City Council,Housing Services,Homelessness,Supplies and Services,01/02/2012 00:00,429519,1011,REVENUE,Restover Lodge Hotel,
Peterborough,http://opendatacommunities.org/id/unitary-authority/peterborough,Peterborough City Council,Children's & Education Services - Children's Social Care,Children Looked After,Employees,01/02/2012 00:00,429472,556.8,REVENUE,Eden Brown Ltd,
Peterborough,http://opendatacommunities.org/id/unitary-authority/peterborough,Peterborough City Council,Children's & Education Services - Education,Non-School Funding,Supplies and Services,01/02/2012 00:00,429239,1197.6,REVENUE,TMP (UK) LTD,
Peterborough,http://opendatacommunities.org/id/unitary-authority/peterborough,Peterborough City Council,"Highways, Roads & Transport Services",Public Transport,Supplies and Services,01/02/2012 00:00,429229,5498.4,REVENUE,ESP Sytex Limited,
Peterborough,http://opendatacommunities.org/id/unitary-authority/peterborough,Peterborough City Council,Deficit/(Surplus) on Trading Undertakings,Trading Account Surpluses & Deficits,Premises,01/02/2012 00:00,429185,4213.61,REVENUE,British Gas Business,
Peterborough,http://opendatacommunities.org/id/unitary-authority/peterborough,Peterborough City Council,Capital,Capital,Capital Pending Update to BS,01/02/2012 00:00,429613,76359.32,CAPITAL,Frederick F Smith (Builders) Ltd,
Peterborough,http://opendatacommunities.org/id/unitary-authority/peterborough,Peterborough City Council,Support Services,Support Services,Supplies and Services,01/02/2012 00:00,429614,1530,REVENUE,Clyde & Co LLP,
Peterborough,http://opendatacommunities.org/id/unitary-authority/peterborough,Peterborough City Council,Capital,Capital,Capital Pending Update to BS,01/02/2012 00:00,429827,3000,CAPITAL,Valuation Office Agency,
Peterborough,http://opendatacommunities.org/id/unitary-authority/peterborough,Peterborough City Council,Capital,Capital,Capital Pending Update to BS,01/02/2012 00:00,429915,1800,CAPITAL,The K A Wing Group Ltd,
Peterborough,http://opendatacommunities.org/id/unitary-authority/peterborough,Peterborough City Council,Children's & Education Services - Children's Social Care,Other Children's & Families Services,Supplies and Services,01/02/2012 00:00,429916,3681.95,REVENUE,Cambs & P'boro NHS Foundation Trust,
Peterborough,http://opendatacommunities.org/id/unitary-authority/peterborough,Peterborough City Council,Housing Services,Homelessness,Supplies and Services,01/02/2012 00:00,429886,667.5,REVENUE,Restover Lodge Hotel,
Peterborough,http://opendatacommunities.org/id/unitary-authority/peterborough,Peterborough City Council,Housing Services,Homelessness,Supplies and Services,01/02/2012 00:00,429889,559.5,REVENUE,Restover Lodge Hotel,
Peterborough,http://opendatacommunities.org/id/unitary-authority/peterborough,Peterborough City Council,Children's & Education Services - Children's Social Care,Children Looked After,Supplies and Services - Transfer Payments,01/02/2012 00:00,430257,618.01,REVENUE,PC Homes,
Peterborough,http://opendatacommunities.org/id/unitary-authority/peterborough,Peterborough City Council,Deficit/(Surplus) on Trading Undertakings,Trading Account Surpluses & Deficits,Supplies and Services,01/02/2012 00:00,430268,658.56,REVENUE,Barron Clark Castings Ltd,
Peterborough,http://opendatacommunities.org/id/unitary-authority/peterborough,Peterborough City Council,Deficit/(Surplus) on Trading Undertakings,Trading Account Surpluses & Deficits,Supplies and Services,01/02/2012 00:00,430270,771,REVENUE,Barron Clark Castings Ltd,
Peterborough,http://opendatacommunities.org/id/unitary-authority/peterborough,Peterborough City Council,Deficit/(Surplus) on Trading Undertakings,Trading Account Surpluses & Deficits,Supplies and Services,01/02/2012 00:00,430272,1201.87,REVENUE,Barron Clark Castings Ltd,
Peterborough,http://opendatacommunities.org/id/unitary-authority/peterborough,Peterborough City Council,Deficit/(Surplus) on Trading Undertakings,Trading Account Surpluses & Deficits,Supplies and Services,01/02/2012 00:00,430273,1927.5,REVENUE,Barron Clark Castings Ltd,
Peterborough,http://opendatacommunities.org/id/unitary-authority/peterborough,Peterborough City Council,Deficit/(Surplus) on Trading Undertakings,Trading Account Surpluses & Deficits,Supplies and Services,01/02/2012 00:00,430279,1156.5,REVENUE,Barron Clark Castings Ltd,
Peterborough,http://opendatacommunities.org/id/unitary-authority/peterborough,Peterborough City Council,Children's & Education Services - Children's Social Care,Children Looked After,Supplies and Services - Transfer Payments,01/02/2012 00:00,430203,3405.66,REVENUE,Children First Fostering Agency,
Peterborough,http://opendatacommunities.org/id/unitary-authority/peterborough,Peterborough City Council,Support Services,Support Services,Supplies and Services,01/02/2012 00:00,430274,15000,REVENUE,Postage By Phone - Pitney Bowes Ltd,
Peterborough,http://opendatacommunities.org/id/unitary-authority/peterborough,Peterborough City Council,Deficit/(Surplus) on Trading Undertakings,Trading Account Surpluses & Deficits,Supplies and Services,01/02/2012 00:00,430284,782.04,REVENUE,Barron Clark Castings Ltd,
Peterborough,http://opendatacommunities.org/id/unitary-authority/peterborough,Peterborough City Council,Children's & Education Services - Children's Social Care,Children Looked After,Supplies and Services - Transfer Payments,01/02/2012 00:00,430288,512.58,REVENUE,PC Homes,
Peterborough,http://opendatacommunities.org/id/unitary-authority/peterborough,Peterborough City Council,Children's & Education Services - Children's Social Care,Children Looked After,Supplies and Services,01/02/2012 00:00,430184,2220,REVENUE,Terrence Higgins Trust Ltd,
Peterborough,http://opendatacommunities.org/id/unitary-authority/peterborough,Peterborough City Council,More than one Service Area Category,More than one Service Division,More than one Expenses Type,01/02/2012 00:00,429869,752,"Mixture of Capital, Revenue and/or Balance Sheet",Heating & Plumbing Services,
Peterborough,http://opendatacommunities.org/id/unitary-authority/peterborough,Peterborough City Council,Housing Services,Homelessness,Supplies and Services,01/02/2012 00:00,429747,932.5,REVENUE,Restover Lodge Hotel,
Peterborough,http://opendatacommunities.org/id/unitary-authority/peterborough,Peterborough City Council,Children's & Education Services - Children's Social Care,Children Looked After,Supplies and Services - Transfer Payments,01/02/2012 00:00,430566,560.98,REVENUE,Redacted Personal Data,
Peterborough,http://opendatacommunities.org/id/unitary-authority/peterborough,Peterborough City Council,Children's & Education Services - Children's Social Care,Children Looked After,Supplies and Services - Transfer Payments,01/02/2012 00:00,430571,885.08,REVENUE,Redacted Personal Data,
Peterborough,http://opendatacommunities.org/id/unitary-authority/peterborough,Peterborough City Council,Children's & Education Services - Children's Social Care,Children Looked After,Supplies and Services - Transfer Payments,01/02/2012 00:00,430573,885.08,REVENUE,Redacted Personal Data,
Peterborough,http://opendatacommunities.org/id/unitary-authority/peterborough,Peterborough City Council,Children's & Education Services - Children's Social Care,Children Looked After,Supplies and Services - Transfer Payments,01/02/2012 00:00,430574,885.08,REVENUE,Redacted Personal Data,
Peterborough,http://opendatacommunities.org/id/unitary-authority/peterborough,Peterborough City Council,Children's & Education Services - Children's Social Care,Children Looked After,Supplies and Services - Transfer Payments,01/02/2012 00:00,430575,885.08,REVENUE,Redacted Personal Data,
Peterborough,http://opendatacommunities.org/id/unitary-authority/peterborough,Peterborough City Council,Children's & Education Services - Children's Social Care,Children Looked After,Supplies and Services - Transfer Payments,01/02/2012 00:00,430576,885.08,REVENUE,Redacted Personal Data,
Peterborough,http://opendatacommunities.org/id/unitary-authority/peterborough,Peterborough City Council,Children's & Education Services - Children's Social Care,Children Looked After,Supplies and Services - Transfer Payments,01/02/2012 00:00,430580,560.98,REVENUE,Redacted Personal Data,
Peterborough,http://opendatacommunities.org/id/unitary-authority/peterborough,Peterborough City Council,Children's & Education Services - Children's Social Care,Children Looked After,Supplies and Services - Transfer Payments,01/02/2012 00:00,430606,560.98,REVENUE,Redacted Personal Data,
Peterborough,http://opendatacommunities.org/id/unitary-authority/peterborough,Peterborough City Council,Children's & Education Services - Children's Social Care,Children Looked After,Supplies and Services - Transfer Payments,01/02/2012 00:00,430612,560.98,REVENUE,Redacted Personal Data,
Peterborough,http://opendatacommunities.org/id/unitary-authority/peterborough,Peterborough City Council,Children's & Education Services - Children's Social Care,Children Looked After,Supplies and Services - Transfer Payments,01/02/2012 00:00,430619,571.83,REVENUE,Redacted Personal Data,
Peterborough,http://opendatacommunities.org/id/unitary-authority/peterborough,Peterborough City Council,Children's & Education Services - Children's Social Care,Children Looked After,Supplies and Services - Transfer Payments,01/02/2012 00:00,430347,647.43,REVENUE,Redacted Personal Data,
Peterborough,http://opendatacommunities.org/id/unitary-authority/peterborough,Peterborough City Council,Housing Services,Homelessness,Supplies and Services,01/02/2012 00:00,430331,700,REVENUE,Peter Lane & Partners,
Peterborough,http://opendatacommunities.org/id/unitary-authority/peterborough,Peterborough City Council,Children's & Education Services - Education,Non-School Funding,Supplies and Services,01/02/2012 00:00,430336,2178,REVENUE,The Teddy Bears inn Day Nursery,
Peterborough,http://opendatacommunities.org/id/unitary-authority/peterborough,Peterborough City Council,Children's & Education Services - Education,Non-School Funding,Supplies and Services,01/02/2012 00:00,430337,595.04,REVENUE,Redacted Personal Data,
Peterborough,http://opendatacommunities.org/id/unitary-authority/peterborough,Peterborough City Council,Children's & Education Services - Education,Non-School Funding,Supplies and Services,01/02/2012 00:00,430339,532.4,REVENUE,PSLA,
Peterborough,http://opendatacommunities.org/id/unitary-authority/peterborough,Peterborough City Council,Children's & Education Services - Education,Non-School Funding,Supplies and Services,01/02/2012 00:00,430340,2662,REVENUE,Herlington Pre-School,
Peterborough,http://opendatacommunities.org/id/unitary-authority/peterborough,Peterborough City Council,Children's & Education Services - Education,Non-School Funding,Supplies and Services,01/02/2012 00:00,430341,2577.3,REVENUE,The Day Nursery Peterborough Ltd,
Peterborough,http://opendatacommunities.org/id/unitary-authority/peterborough,Peterborough City Council,Children's & Education Services - Children's Social Care,Other Children's & Families Services,Supplies and Services - Transfer Payments,01/02/2012 00:00,430474,1705.34,REVENUE,Redacted Personal Data,
Peterborough,http://opendatacommunities.org/id/unitary-authority/peterborough,Peterborough City Council,Children's & Education Services - Children's Social Care,Children Looked After,Supplies and Services - Transfer Payments,01/02/2012 00:00,430480,616.18,REVENUE,Redacted Personal Data,
Peterborough,http://opendatacommunities.org/id/unitary-authority/peterborough,Peterborough City Council,Children's & Education Services - Children's Social Care,Children Looked After,Supplies and Services - Transfer Payments,01/02/2012 00:00,430481,560.98,REVENUE,Redacted Personal Data,
Peterborough,http://opendatacommunities.org/id/unitary-authority/peterborough,Peterborough City Council,Children's & Education Services - Children's Social Care,Children Looked After,Supplies and Services - Transfer Payments,01/02/2012 00:00,430482,560.98,REVENUE,Redacted Personal Data,
Peterborough,http://opendatacommunities.org/id/unitary-authority/peterborough,Peterborough City Council,Children's & Education Services - Children's Social Care,Children Looked After,Supplies and Services - Transfer Payments,01/02/2012 00:00,430483,529.9,REVENUE,Redacted Personal Data,
Peterborough,http://opendatacommunities.org/id/unitary-authority/peterborough,Peterborough City Council,Children's & Education Services - Children's Social Care,Children Looked After,Supplies and Services - Transfer Payments,01/02/2012 00:00,430484,560.98,REVENUE,Redacted Personal Data,
Peterborough,http://opendatacommunities.org/id/unitary-authority/peterborough,Peterborough City Council,Children's & Education Services - Children's Social Care,Children Looked After,Supplies and Services - Transfer Payments,01/02/2012 00:00,430485,529.9,REVENUE,Redacted Personal Data,
Peterborough,http://opendatacommunities.org/id/unitary-authority/peterborough,Peterborough City Council,Children's & Education Services - Children's Social Care,Children Looked After,Supplies and Services - Transfer Payments,01/02/2012 00:00,430487,529.9,REVENUE,Redacted Personal Data,
Peterborough,http://opendatacommunities.org/id/unitary-authority/peterborough,Peterborough City Council,Children's & Education Services - Children's Social Care,Children Looked After,Supplies and Services - Transfer Payments,01/02/2012 00:00,430488,529.9,REVENUE,Redacted Personal Data,
Peterborough,http://opendatacommunities.org/id/unitary-authority/peterborough,Peterborough City Council,Children's & Education Services - Children's Social Care,Children Looked After,Supplies and Services - Transfer Payments,01/02/2012 00:00,430489,560.98,REVENUE,Redacted Personal Data,
Peterborough,http://opendatacommunities.org/id/unitary-authority/peterborough,Peterborough City Council,Children's & Education Services - Children's Social Care,Children Looked After,Supplies and Services - Transfer Payments,01/02/2012 00:00,430490,529.9,REVENUE,Redacted Personal Data,
Peterborough,http://opendatacommunities.org/id/unitary-authority/peterborough,Peterborough City Council,Children's & Education Services - Children's Social Care,Children Looked After,Supplies and Services - Transfer Payments,01/02/2012 00:00,430491,529.9,REVENUE,Redacted Personal Data,
Peterborough,http://opendatacommunities.org/id/unitary-authority/peterborough,Peterborough City Council,Children's & Education Services - Children's Social Care,Children Looked After,Supplies and Services - Transfer Payments,01/02/2012 00:00,430492,560.98,REVENUE,Redacted Personal Data,
Peterborough,http://opendatacommunities.org/id/unitary-authority/peterborough,Peterborough City Council,Children's & Education Services - Children's Social Care,Children Looked After,Supplies and Services - Transfer Payments,01/02/2012 00:00,430493,529.9,REVENUE,Redacted Personal Data,
Peterborough,http://opendatacommunities.org/id/unitary-authority/peterborough,Peterborough City Council,Children's & Education Services - Children's Social Care,Children Looked After,Supplies and Services - Transfer Payments,01/02/2012 00:00,430495,560.98,REVENUE,Redacted Personal Data,
Peterborough,http://opendatacommunities.org/id/unitary-authority/peterborough,Peterborough City Council,Children's & Education Services - Children's Social Care,Children Looked After,Supplies and Services - Transfer Payments,01/02/2012 00:00,430497,529.9,REVENUE,Redacted Personal Data,
Peterborough,http://opendatacommunities.org/id/unitary-authority/peterborough,Peterborough City Council,Children's & Education Services - Children's Social Care,Children Looked After,Supplies and Services - Transfer Payments,01/02/2012 00:00,430499,560.98,REVENUE,Redacted Personal Data,
Peterborough,http://opendatacommunities.org/id/unitary-authority/peterborough,Peterborough City Council,Children's & Education Services - Children's Social Care,Children Looked After,Supplies and Services - Transfer Payments,01/02/2012 00:00,430500,529.9,REVENUE,Redacted Personal Data,
Peterborough,http://opendatacommunities.org/id/unitary-authority/peterborough,Peterborough City Council,Children's & Education Services - Children's Social Care,Children Looked After,Supplies and Services - Transfer Payments,01/02/2012 00:00,430501,529.9,REVENUE,Redacted Personal Data,
Peterborough,http://opendatacommunities.org/id/unitary-authority/peterborough,Peterborough City Council,Children's & Education Services - Children's Social Care,Children Looked After,Supplies and Services - Transfer Payments,01/02/2012 00:00,430502,560.98,REVENUE,Redacted Personal Data,
Peterborough,http://opendatacommunities.org/id/unitary-authority/peterborough,Peterborough City Council,Children's & Education Services - Children's Social Care,Children Looked After,Supplies and Services - Transfer Payments,01/02/2012 00:00,430504,661.36,REVENUE,Redacted Personal Data,
Peterborough,http://opendatacommunities.org/id/unitary-authority/peterborough,Peterborough City Council,Children's & Education Services - Children's Social Care,Children Looked After,Supplies and Services - Transfer Payments,01/02/2012 00:00,430505,529.9,REVENUE,Redacted Personal Data,
Peterborough,http://opendatacommunities.org/id/unitary-authority/peterborough,Peterborough City Council,Children's & Education Services - Children's Social Care,Children Looked After,Supplies and Services - Transfer Payments,01/02/2012 00:00,430506,529.9,REVENUE,Redacted Personal Data,
Peterborough,http://opendatacommunities.org/id/unitary-authority/peterborough,Peterborough City Council,Children's & Education Services - Children's Social Care,Children Looked After,Supplies and Services - Transfer Payments,01/02/2012 00:00,430507,529.9,REVENUE,Redacted Personal Data,
Peterborough,http://opendatacommunities.org/id/unitary-authority/peterborough,Peterborough City Council,Children's & Education Services - Children's Social Care,Children Looked After,Supplies and Services - Transfer Payments,01/02/2012 00:00,430517,560.98,REVENUE,Redacted Personal Data,
Peterborough,http://opendatacommunities.org/id/unitary-authority/peterborough,Peterborough City Council,Children's & Education Services - Children's Social Care,Children Looked After,Supplies and Services - Transfer Payments,01/02/2012 00:00,430518,885.08,REVENUE,Redacted Personal Data,
Peterborough,http://opendatacommunities.org/id/unitary-authority/peterborough,Peterborough City Council,Children's & Education Services - Children's Social Care,Children Looked After,Supplies and Services - Transfer Payments,01/02/2012 00:00,430521,536.56,REVENUE,Redacted Personal Data,
Peterborough,http://opendatacommunities.org/id/unitary-authority/peterborough,Peterborough City Council,Children's & Education Services - Children's Social Care,Children Looked After,Supplies and Services - Transfer Payments,01/02/2012 00:00,430523,529.9,REVENUE,Redacted Personal Data,
Peterborough,http://opendatacommunities.org/id/unitary-authority/peterborough,Peterborough City Council,Children's & Education Services - Children's Social Care,Children Looked After,Supplies and Services - Transfer Payments,01/02/2012 00:00,430524,560.98,REVENUE,Redacted Personal Data,
Peterborough,http://opendatacommunities.org/id/unitary-authority/peterborough,Peterborough City Council,Children's & Education Services - Children's Social Care,Children Looked After,Supplies and Services - Transfer Payments,01/02/2012 00:00,430526,626.43,REVENUE,Redacted Personal Data,
Peterborough,http://opendatacommunities.org/id/unitary-authority/peterborough,Peterborough City Council,Children's & Education Services - Children's Social Care,Children Looked After,Supplies and Services - Transfer Payments,01/02/2012 00:00,430529,560.98,REVENUE,Redacted Personal Data,
Peterborough,http://opendatacommunities.org/id/unitary-authority/peterborough,Peterborough City Council,Children's & Education Services - Children's Social Care,Children Looked After,Supplies and Services - Transfer Payments,01/02/2012 00:00,430540,529.9,REVENUE,Redacted Personal Data,
Peterborough,http://opendatacommunities.org/id/unitary-authority/peterborough,Peterborough City Council,Children's & Education Services - Children's Social Care,Children Looked After,Supplies and Services - Transfer Payments,01/02/2012 00:00,430542,529.9,REVENUE,Redacted Personal Data,
Peterborough,http://opendatacommunities.org/id/unitary-authority/peterborough,Peterborough City Council,Children's & Education Services - Children's Social Care,Family Support Services,Supplies and Services,01/02/2012 00:00,430548,1148.22,REVENUE,Redacted Personal Data,
Peterborough,http://opendatacommunities.org/id/unitary-authority/peterborough,Peterborough City Council,Children's & Education Services - Children's Social Care,Children Looked After,Supplies and Services - Transfer Payments,01/02/2012 00:00,430592,529.9,REVENUE,Redacted Personal Data,
Peterborough,http://opendatacommunities.org/id/unitary-authority/peterborough,Peterborough City Council,Children's & Education Services - Children's Social Care,Children Looked After,Supplies and Services - Transfer Payments,01/02/2012 00:00,430599,568.2,REVENUE,Redacted Personal Data,
Peterborough,http://opendatacommunities.org/id/unitary-authority/peterborough,Peterborough City Council,Children's & Education Services - Children's Social Care,Children Looked After,Supplies and Services - Transfer Payments,01/02/2012 00:00,430626,529.9,REVENUE,Redacted Personal Data,
Peterborough,http://opendatacommunities.org/id/unitary-authority/peterborough,Peterborough City Council,Children's & Education Services - Children's Social Care,Children Looked After,Supplies and Services - Transfer Payments,01/02/2012 00:00,430627,529.9,REVENUE,Redacted Personal Data,
Peterborough,http://opendatacommunities.org/id/unitary-authority/peterborough,Peterborough City Council,Children's & Education Services - Children's Social Care,Children Looked After,Supplies and Services - Transfer Payments,01/02/2012 00:00,430639,529.9,REVENUE,Redacted Personal Data,
Peterborough,http://opendatacommunities.org/id/unitary-authority/peterborough,Peterborough City Council,Children's & Education Services - Children's Social Care,Other Children's & Families Services,Supplies and Services - Transfer Payments,01/02/2012 00:00,430643,710.08,REVENUE,Redacted Personal Data,
Peterborough,http://opendatacommunities.org/id/unitary-authority/peterborough,Peterborough City Council,Children's & Education Services - Children's Social Care,Other Children's & Families Services,Supplies and Services - Transfer Payments,01/02/2012 00:00,430372,600,REVENUE,Redacted Personal Data,
Peterborough,http://opendatacommunities.org/id/unitary-authority/peterborough,Peterborough City Council,Children's & Education Services - Children's Social Care,Other Children's & Families Services,Supplies and Services - Transfer Payments,01/02/2012 00:00,430373,613.6,REVENUE,Redacted Personal Data,
Peterborough,http://opendatacommunities.org/id/unitary-authority/peterborough,Peterborough City Council,Children's & Education Services - Children's Social Care,Children Looked After,Supplies and Services - Transfer Payments,01/02/2012 00:00,430674,606.13,REVENUE,Redacted Personal Data,
Peterborough,http://opendatacommunities.org/id/unitary-authority/peterborough,Peterborough City Council,Children's & Education Services - Children's Social Care,Family Support Services,Supplies and Services,01/02/2012 00:00,430690,566.15,REVENUE,Redacted Personal Data,
Peterborough,http://opendatacommunities.org/id/unitary-authority/peterborough,Peterborough City Council,Children's & Education Services - Children's Social Care,Children Looked After,Supplies and Services - Transfer Payments,01/02/2012 00:00,430692,657.54,REVENUE,Redacted Personal Data,
Peterborough,http://opendatacommunities.org/id/unitary-authority/peterborough,Peterborough City Council,Children's & Education Services - Children's Social Care,Children Looked After,Supplies and Services - Transfer Payments,01/02/2012 00:00,430693,529.9,REVENUE,Redacted Personal Data,
Peterborough,http://opendatacommunities.org/id/unitary-authority/peterborough,Peterborough City Council,Children's & Education Services - Children's Social Care,Other Children's & Families Services,Supplies and Services - Transfer Payments,01/02/2012 00:00,430695,695,REVENUE,Redacted Personal Data,
Peterborough,http://opendatacommunities.org/id/unitary-authority/peterborough,Peterborough City Council,Children's & Education Services - Children's Social Care,Children Looked After,Supplies and Services - Transfer Payments,01/02/2012 00:00,430703,568.2,REVENUE,Redacted Personal Data,
Peterborough,http://opendatacommunities.org/id/unitary-authority/peterborough,Peterborough City Council,Children's & Education Services - Children's Social Care,Children Looked After,Supplies and Services - Transfer Payments,01/02/2012 00:00,430707,571.83,REVENUE,Redacted Personal Data,
Peterborough,http://opendatacommunities.org/id/unitary-authority/peterborough,Peterborough City Council,Corporate & Democratic Core,Democratic Representation & Managemetn,Supplies and Services,01/02/2012 00:00,430804,2093.08,REVENUE,Redacted Personal Data,
Peterborough,http://opendatacommunities.org/id/unitary-authority/peterborough,Peterborough City Council,More than one Service Area Category,More than one Service Division,Balance Sheet,01/02/2012 00:00,430805,566,Balance Sheet,Dept for Work & Pensions,
Peterborough,http://opendatacommunities.org/id/unitary-authority/peterborough,Peterborough City Council,Children's & Education Services - Children's Social Care,Support Services & Management Costs,Supplies and Services,01/02/2012 00:00,430807,700,REVENUE,HM Courts and Tribunals Service (HMCTS),
Peterborough,http://opendatacommunities.org/id/unitary-authority/peterborough,Peterborough City Council,Children's & Education Services - Children's Social Care,Support Services & Management Costs,Supplies and Services,01/02/2012 00:00,430809,1900,REVENUE,HM Courts and Tribunals Service (HMCTS),
Peterborough,http://opendatacommunities.org/id/unitary-authority/peterborough,Peterborough City Council,Cultural and Related Services,More than one Service Division,Supplies and Services,01/02/2012 00:00,430810,25284.04,REVENUE,Vivacity Culture and Leisure,
Peterborough,http://opendatacommunities.org/id/unitary-authority/peterborough,Peterborough City Council,Children's & Education Services - Children's Social Care,Children Looked After,Employees,01/02/2012 00:00,430818,957.6,REVENUE,Medicare First,
Peterborough,http://opendatacommunities.org/id/unitary-authority/peterborough,Peterborough City Council,Children's & Education Services - Children's Social Care,Children Looked After,Supplies and Services - Transfer Payments,01/02/2012 00:00,430712,529.9,REVENUE,Redacted Personal Data,
Peterborough,http://opendatacommunities.org/id/unitary-authority/peterborough,Peterborough City Council,Children's & Education Services - Children's Social Care,Children Looked After,Supplies and Services - Transfer Payments,01/02/2012 00:00,430717,540,REVENUE,Redacted Personal Data,
Peterborough,http://opendatacommunities.org/id/unitary-authority/peterborough,Peterborough City Council,Children's & Education Services - Education,Non-School Funding,Supplies and Services,01/02/2012 00:00,430747,1440,REVENUE,Browne Jacobson,
Peterborough,http://opendatacommunities.org/id/unitary-authority/peterborough,Peterborough City Council,Children's & Education Services - Education,Non-School Funding,Supplies and Services,01/02/2012 00:00,430748,900,REVENUE,Browne Jacobson,
Peterborough,http://opendatacommunities.org/id/unitary-authority/peterborough,Peterborough City Council,Children's & Education Services - Education,Non-School Funding,Supplies and Services,01/02/2012 00:00,430749,900,REVENUE,Browne Jacobson,
Peterborough,http://opendatacommunities.org/id/unitary-authority/peterborough,Peterborough City Council,Support Services,Support Services,Premises,01/02/2012 00:00,430765,7005.48,REVENUE,Zurich Insurance Company,
Peterborough,http://opendatacommunities.org/id/unitary-authority/peterborough,Peterborough City Council,Support Services,Support Services,Premises,01/02/2012 00:00,430768,2485.11,REVENUE,Zurich Insurance Company,
Peterborough,http://opendatacommunities.org/id/unitary-authority/peterborough,Peterborough City Council,More than one Service Area Category,More than one Service Division,Premises,01/02/2012 00:00,430784,728.98,REVENUE,Anglian Water,
Peterborough,http://opendatacommunities.org/id/unitary-authority/peterborough,Peterborough City Council,More than one Service Area Category,More than one Service Division,Premises,01/02/2012 00:00,430785,973.9,REVENUE,E.ON Energy,
Peterborough,http://opendatacommunities.org/id/unitary-authority/peterborough,Peterborough City Council,More than one Service Area Category,More than one Service Division,Premises,01/02/2012 00:00,430786,6036.18,REVENUE,Southern Electric,
Peterborough,http://opendatacommunities.org/id/unitary-authority/peterborough,Peterborough City Council,More than one Service Area Category,More than one Service Division,Balance Sheet,01/02/2012 00:00,430787,6725,Balance Sheet,Plexus Law,
Peterborough,http://opendatacommunities.org/id/unitary-authority/peterborough,Peterborough City Council,More than one Service Area Category,More than one Service Division,Balance Sheet,01/02/2012 00:00,430788,5750,Balance Sheet,Brearleys Solicitors,
Peterborough,http://opendatacommunities.org/id/unitary-authority/peterborough,Peterborough City Council,Support Services,Support Services,Supplies and Services,01/02/2012 00:00,430870,3231.25,REVENUE,Carter Roe ltd,
Peterborough,http://opendatacommunities.org/id/unitary-authority/peterborough,Peterborough City Council,More than one Service Area Category,More than one Service Division,More than one Expenses Type,01/02/2012 00:00,430918,1126.56,REVENUE,Peterborough City Council,
Peterborough,http://opendatacommunities.org/id/unitary-authority/peterborough,Peterborough City Council,More than one Service Area Category,More than one Service Division,More than one Expenses Type,01/02/2012 00:00,430950,1604.19,REVENUE,Peterborough City Council,
Peterborough,http://opendatacommunities.org/id/unitary-authority/peterborough,Peterborough City Council,"Highways, Roads & Transport Services",Parking Services,Employees,01/02/2012 00:00,430866,688.8,REVENUE,Unity Recruitment Ltd,
Peterborough,http://opendatacommunities.org/id/unitary-authority/peterborough,Peterborough City Council,More than one Service Area Category,More than one Service Division,Premises,01/02/2012 00:00,430869,-916.59,REVENUE,Eastern Shires Purchasing Organisation,
Peterborough,http://opendatacommunities.org/id/unitary-authority/peterborough,Peterborough City Council,More than one Service Area Category,More than one Service Division,Premises,01/02/2012 00:00,430904,1389.63,REVENUE,Eastern Shires Purchasing Organisation,
Peterborough,http://opendatacommunities.org/id/unitary-authority/peterborough,Peterborough City Council,Housing Services,Homelessness,Supplies and Services,01/02/2012 00:00,430915,824.5,REVENUE,Restover Lodge Hotel,
Peterborough,http://opendatacommunities.org/id/unitary-authority/peterborough,Peterborough City Council,Children's & Education Services - Children's Social Care,Children Looked After,Supplies and Services - Transfer Payments,01/02/2012 00:00,430652,529.9,REVENUE,Redacted Personal Data,
Peterborough,http://opendatacommunities.org/id/unitary-authority/peterborough,Peterborough City Council,Children's & Education Services - Children's Social Care,Children Looked After,Supplies and Services - Transfer Payments,01/02/2012 00:00,430655,780.5,REVENUE,Redacted Personal Data,
Peterborough,http://opendatacommunities.org/id/unitary-authority/peterborough,Peterborough City Council,Capital,Capital,Capital Pending Update to BS,02/02/2012 00:00,431220,20980,CAPITAL,John Cook Illustrations,
Peterborough,http://opendatacommunities.org/id/unitary-authority/peterborough,Peterborough City Council,Children's & Education Services - Children's Social Care,Children Looked After,Supplies and Services - Transfer Payments,01/02/2012 00:00,430664,529.9,REVENUE,Redacted Personal Data,
Peterborough,http://opendatacommunities.org/id/unitary-authority/peterborough,Peterborough City Council,Planning Services,Recreation & Sport,Premises,03/02/2012 00:00,412555,518.33,REVENUE,Hampton Hargate Primary School,
Peterborough,http://opendatacommunities.org/id/unitary-authority/peterborough,Peterborough City Council,Capital,Capital,Capital Pending Update to BS,03/02/2012 00:00,413680,4773.34,CAPITAL,Rider Levett Bucknall UK Ltd,
Peterborough,http://opendatacommunities.org/id/unitary-authority/peterborough,Peterborough City Council,Environmental and Regulatory Services,"Cemetery, Crematorium & Mortuary Services",Supplies and Services,03/02/2012 00:00,417882,669,REVENUE,Fibrous Ltd,
Peterborough,http://opendatacommunities.org/id/unitary-authority/peterborough,Peterborough City Council,Capital,Capital,Capital Pending Update to BS,03/02/2012 00:00,423346,4773.34,CAPITAL,Rider Levett Bucknall UK Ltd,
Peterborough,http://opendatacommunities.org/id/unitary-authority/peterborough,Peterborough City Council,Children's & Education Services - Children's Social Care,Support Services & Management Costs,Employees,03/02/2012 00:00,423697,1614.06,REVENUE,Service Care Solutions Ltd,
Peterborough,http://opendatacommunities.org/id/unitary-authority/peterborough,Peterborough City Council,Deficit/(Surplus) on Trading Undertakings,Trading Account Surpluses & Deficits,Supplies and Services,03/02/2012 00:00,426665,937.5,REVENUE,Southern Electric,
Peterborough,http://opendatacommunities.org/id/unitary-authority/peterborough,Peterborough City Council,Children's & Education Services - Children's Social Care,Support Services & Management Costs,Employees,03/02/2012 00:00,426791,1529.14,REVENUE,Randstad Care Ltd,
Peterborough,http://opendatacommunities.org/id/unitary-authority/peterborough,Peterborough City Council,Children's & Education Services - Children's Social Care,Children Looked After,Employees,03/02/2012 00:00,426797,1906.8,REVENUE,Textbook Teachers,
Peterborough,http://opendatacommunities.org/id/unitary-authority/peterborough,Peterborough City Council,Children's & Education Services - Children's Social Care,Children Looked After,Supplies and Services - Transfer Payments,03/02/2012 00:00,427837,3410,REVENUE,Acorn Fostering Services Ltd,
Peterborough,http://opendatacommunities.org/id/unitary-authority/peterborough,Peterborough City Council,Children's & Education Services - Education,Secondary,Supplies and Services,03/02/2012 00:00,429645,-2648.13,REVENUE,IIC by Education (P'boro) Ltd,
Peterborough,http://opendatacommunities.org/id/unitary-authority/peterborough,Peterborough City Council,Deficit/(Surplus) on Trading Undertakings,Trading Account Surpluses & Deficits,Supplies and Services,03/02/2012 00:00,430271,1096.42,REVENUE,Barron Clark Castings Ltd,
Peterborough,http://opendatacommunities.org/id/unitary-authority/peterborough,Peterborough City Council,Capital,Capital,Capital Pending Update to BS,03/02/2012 00:00,430036,19032.85,CAPITAL,Frederick F Smith (Builders) Ltd,
Peterborough,http://opendatacommunities.org/id/unitary-authority/peterborough,Peterborough City Council,Capital,Capital,Capital Pending Update to BS,03/02/2012 00:00,430334,2500,CAPITAL,Peakirk Village Hall Committee,
Peterborough,http://opendatacommunities.org/id/unitary-authority/peterborough,Peterborough City Council,More than one Service Area Category,More than one Service Division,More than one Expenses Type,03/02/2012 00:00,430298,102368.89,"Mixture of Capital, Revenue and/or Balance Sheet",Ringway Infrastructure Services,
Peterborough,http://opendatacommunities.org/id/unitary-authority/peterborough,Peterborough City Council,Children's & Education Services - Education,All Schools - apportion across sectors,Employees,03/02/2012 00:00,430815,5732.62,REVENUE,Education Personnel Management Ltd,
Peterborough,http://opendatacommunities.org/id/unitary-authority/peterborough,Peterborough City Council,Children's & Education Services - Children's Social Care,Family Support Services,More than one Expenses Type,03/02/2012 00:00,431087,688.27,REVENUE,Cherry Lodge,
Peterborough,http://opendatacommunities.org/id/unitary-authority/peterborough,Peterborough City Council,More than one Service Area Category,More than one Service Division,Supplies and Services,03/02/2012 00:00,431014,6657.65,REVENUE,GSL Dardan Ltd,
Peterborough,http://opendatacommunities.org/id/unitary-authority/peterborough,Peterborough City Council,More than one Service Area Category,More than one Service Division,Supplies and Services,03/02/2012 00:00,431017,5580,REVENUE,GSL Dardan Ltd,
Peterborough,http://opendatacommunities.org/id/unitary-authority/peterborough,Peterborough City Council,Children's & Education Services - Education,Secondary,Premises,03/02/2012 00:00,431101,11757.82,REVENUE,Eastern Shires Purchasing Organisation,
Peterborough,http://opendatacommunities.org/id/unitary-authority/peterborough,Peterborough City Council,Children's & Education Services - Education,Secondary,Premises,03/02/2012 00:00,431102,8588.61,REVENUE,Eastern Shires Purchasing Organisation,
Peterborough,http://opendatacommunities.org/id/unitary-authority/peterborough,Peterborough City Council,Children's & Education Services - Education,Secondary,Premises,03/02/2012 00:00,431105,536.23,REVENUE,Eastern Shires Purchasing Organisation,
Peterborough,http://opendatacommunities.org/id/unitary-authority/peterborough,Peterborough City Council,Planning Services,Economic Development,Third Party Payments,03/02/2012 00:00,431106,127842.9,REVENUE,Opportunity Peterborough,
Peterborough,http://opendatacommunities.org/id/unitary-authority/peterborough,Peterborough City Council,Support Services,Support Services,Premises,03/02/2012 00:00,431118,6672.71,REVENUE,Zurich Insurance Company,
Peterborough,http://opendatacommunities.org/id/unitary-authority/peterborough,Peterborough City Council,Children's & Education Services - Education,Secondary,Premises,03/02/2012 00:00,431119,664.92,REVENUE,Anglian Water,
Peterborough,http://opendatacommunities.org/id/unitary-authority/peterborough,Peterborough City Council,Support Services,Support Services,Employees,03/02/2012 00:00,430958,5050.94,REVENUE,TMP (UK) LTD,
Peterborough,http://opendatacommunities.org/id/unitary-authority/peterborough,Peterborough City Council,Children's & Education Services - Education,Primary,Supplies and Services,03/02/2012 00:00,430969,1617.8,REVENUE,Redacted Personal Data,
Peterborough,http://opendatacommunities.org/id/unitary-authority/peterborough,Peterborough City Council,Cultural and Related Services,Tourism,Supplies and Services,03/02/2012 00:00,430975,720,REVENUE,Black Knight Historical,
Peterborough,http://opendatacommunities.org/id/unitary-authority/peterborough,Peterborough City Council,Cultural and Related Services,Waste Collection,Supplies and Services,03/02/2012 00:00,431006,3153.6,REVENUE,Onwatch Plc,
Peterborough,http://opendatacommunities.org/id/unitary-authority/peterborough,Peterborough City Council,Cultural and Related Services,Waste Collection,Supplies and Services,03/02/2012 00:00,430836,1342.81,REVENUE,Mid UK Recycling Ltd,
Peterborough,http://opendatacommunities.org/id/unitary-authority/peterborough,Peterborough City Council,More than one Service Area Category,More than one Service Division,Balance Sheet,03/02/2012 00:00,431575,6221.3,Balance Sheet,Teachers Pensions,
Peterborough,http://opendatacommunities.org/id/unitary-authority/peterborough,Peterborough City Council,Deficit/(Surplus) on Trading Undertakings,Trading Account Surpluses & Deficits,More than one Expenses Type,03/02/2012 00:00,431583,85589.5,REVENUE,Enterprise Managed Services Limited,
Peterborough,http://opendatacommunities.org/id/unitary-authority/peterborough,Peterborough City Council,More than one Service Area Category,More than one Service Division,Third Party Payments,03/02/2012 00:00,431584,748767.8,REVENUE,Enterprise Managed Services Limited,
Peterborough,http://opendatacommunities.org/id/unitary-authority/peterborough,Peterborough City Council,More than one Service Area Category,More than one Service Division,Balance Sheet,03/02/2012 00:00,431629,5667.67,Balance Sheet,IIC by Education (P'boro) Ltd,
Peterborough,http://opendatacommunities.org/id/unitary-authority/peterborough,Peterborough City Council,Housing Services,Homelessness,Supplies and Services,03/02/2012 00:00,431644,549.99,REVENUE,Rooms 4 U,
Peterborough,http://opendatacommunities.org/id/unitary-authority/peterborough,Peterborough City Council,Deficit/(Surplus) on Trading Undertakings,Trading Account Surpluses & Deficits,Premises,03/02/2012 00:00,431139,1182.5,REVENUE,J R Clarke Ltd,
Peterborough,http://opendatacommunities.org/id/unitary-authority/peterborough,Peterborough City Council,Housing Services,Homelessness,Supplies and Services,03/02/2012 00:00,431658,700,REVENUE,Record Property Solutions,
Peterborough,http://opendatacommunities.org/id/unitary-authority/peterborough,Peterborough City Council,Adult Social Care,Other Adult Services,Third Party Payments,03/02/2012 00:00,431241,866.48,REVENUE,Frontier Medical,
Peterborough,http://opendatacommunities.org/id/unitary-authority/peterborough,Peterborough City Council,Children's & Education Services - Children's Social Care,Children Looked After,Transport,03/02/2012 00:00,431125,3986.4,REVENUE,A2B Euro Cars,
Peterborough,http://opendatacommunities.org/id/unitary-authority/peterborough,Peterborough City Council,Children's & Education Services - Children's Social Care,Children Looked After,Transport,03/02/2012 00:00,431126,2773.2,REVENUE,A2B Euro Cars,
Peterborough,http://opendatacommunities.org/id/unitary-authority/peterborough,Peterborough City Council,Children's & Education Services - Children's Social Care,Children Looked After,Transport,03/02/2012 00:00,431127,844.8,REVENUE,A2B Euro Cars,
Peterborough,http://opendatacommunities.org/id/unitary-authority/peterborough,Peterborough City Council,Children's & Education Services - Children's Social Care,Children Looked After,Transport,03/02/2012 00:00,431128,981.6,REVENUE,A2B Euro Cars,
Peterborough,http://opendatacommunities.org/id/unitary-authority/peterborough,Peterborough City Council,More than one Service Area Category,More than one Service Division,Transport,03/02/2012 00:00,431130,1461.15,REVENUE,Redacted Personal Data,
Peterborough,http://opendatacommunities.org/id/unitary-authority/peterborough,Peterborough City Council,More than one Service Area Category,More than one Service Division,Transport,03/02/2012 00:00,431133,1647.45,REVENUE,Redacted Personal Data,
Peterborough,http://opendatacommunities.org/id/unitary-authority/peterborough,Peterborough City Council,Children's & Education Services - Children's Social Care,Children Looked After,More than one Expenses Type,03/02/2012 00:00,431134,1337.1,REVENUE,Redacted Personal Data,
Peterborough,http://opendatacommunities.org/id/unitary-authority/peterborough,Peterborough City Council,Capital,Capital,Capital Pending Update to BS,03/02/2012 00:00,431214,8400,CAPITAL,Savills L&P Ltd,
Peterborough,http://opendatacommunities.org/id/unitary-authority/peterborough,Peterborough City Council,Environmental and Regulatory Services,Regulatory services,Employees,03/02/2012 00:00,431254,1560,REVENUE,Chartered Inst of Environmental Health,
Peterborough,http://opendatacommunities.org/id/unitary-authority/peterborough,Peterborough City Council,Children's & Education Services - Education,Management and support services,Premises,03/02/2012 00:00,431192,1225.44,REVENUE,Southern Electric,
Peterborough,http://opendatacommunities.org/id/unitary-authority/peterborough,Peterborough City Council,Children's & Education Services - Children's Social Care,Children Looked After,Supplies and Services - Transfer Payments,03/02/2012 00:00,431484,625,REVENUE,United Carpets,
Peterborough,http://opendatacommunities.org/id/unitary-authority/peterborough,Peterborough City Council,Children's & Education Services - Education,Non-School Funding,Employees,03/02/2012 00:00,431547,24397.22,REVENUE,Teachers Pensions,
Peterborough,http://opendatacommunities.org/id/unitary-authority/peterborough,Peterborough City Council,Children's & Education Services - Children's Social Care,Children Looked After,Transport,03/02/2012 00:00,431604,635.4,REVENUE,Redacted Personal Data,
Peterborough,http://opendatacommunities.org/id/unitary-authority/peterborough,Peterborough City Council,More than one Service Area Category,More than one Service Division,More than one Expenses Type,03/02/2012 00:00,431605,1423.9,REVENUE,Redacted Personal Data,
Peterborough,http://opendatacommunities.org/id/unitary-authority/peterborough,Peterborough City Council,More than one Service Area Category,More than one Service Division,Transport,03/02/2012 00:00,431606,1584,REVENUE,Redacted Personal Data,
Peterborough,http://opendatacommunities.org/id/unitary-authority/peterborough,Peterborough City Council,Children's & Education Services - Children's Social Care,Children Looked After,Transport,03/02/2012 00:00,431608,1408.05,REVENUE,Redacted Personal Data,
Peterborough,http://opendatacommunities.org/id/unitary-authority/peterborough,Peterborough City Council,Children's & Education Services - Children's Social Care,Children Looked After,Transport,03/02/2012 00:00,431610,1195.65,REVENUE,Redacted Personal Data,
Peterborough,http://opendatacommunities.org/id/unitary-authority/peterborough,Peterborough City Council,Children's & Education Services - Children's Social Care,Children Looked After,Transport,03/02/2012 00:00,431613,582.3,REVENUE,Redacted Personal Data,
Peterborough,http://opendatacommunities.org/id/unitary-authority/peterborough,Peterborough City Council,Children's & Education Services - Education,Non-School Funding,Transport,03/02/2012 00:00,431160,1148.4,REVENUE,R T Enterprises Ltd T/A Royal Taxis,
Peterborough,http://opendatacommunities.org/id/unitary-authority/peterborough,Peterborough City Council,More than one Service Area Category,More than one Service Division,Balance Sheet,03/02/2012 00:00,431549,6253.05,Balance Sheet,The Prudential Assurance Company Ltd,
Peterborough,http://opendatacommunities.org/id/unitary-authority/peterborough,Peterborough City Council,Support Services,Support Services,Supplies and Services,03/02/2012 00:00,431552,1048.8,REVENUE,Serco Ltd,
Peterborough,http://opendatacommunities.org/id/unitary-authority/peterborough,Peterborough City Council,Children's & Education Services - Children's Social Care,Service Strategy,Supplies and Services,03/02/2012 00:00,431557,756.77,REVENUE,Serco Ltd,
Peterborough,http://opendatacommunities.org/id/unitary-authority/peterborough,Peterborough City Council,More than one Service Area Category,More than one Service Division,Balance Sheet,03/02/2012 00:00,431562,6089.62,Balance Sheet,The Prudential Assurance Company Ltd,
Peterborough,http://opendatacommunities.org/id/unitary-authority/peterborough,Peterborough City Council,More than one Service Area Category,More than one Service Division,Balance Sheet,03/02/2012 00:00,431565,735608.93,Balance Sheet,Teachers Pensions,
Peterborough,http://opendatacommunities.org/id/unitary-authority/peterborough,Peterborough City Council,Children's & Education Services - Children's Social Care,Other Children's & Families Services,Employees,06/02/2012 00:00,420379,1149.97,REVENUE,Capita Resourcing Ltd,
Peterborough,http://opendatacommunities.org/id/unitary-authority/peterborough,Peterborough City Council,Children's & Education Services - Children's Social Care,Other Children's & Families Services,Employees,06/02/2012 00:00,422609,1154.53,REVENUE,Capita Resourcing Ltd,
Peterborough,http://opendatacommunities.org/id/unitary-authority/peterborough,Peterborough City Council,Children's & Education Services - Children's Social Care,Other Children's & Families Services,Employees,06/02/2012 00:00,423311,1148.29,REVENUE,Capita Resourcing Ltd,
Peterborough,http://opendatacommunities.org/id/unitary-authority/peterborough,Peterborough City Council,Children's & Education Services - Children's Social Care,Other Children's & Families Services,Employees,06/02/2012 00:00,425736,1587,REVENUE,Sanctuary Personnel Ltd,
Peterborough,http://opendatacommunities.org/id/unitary-authority/peterborough,Peterborough City Council,Support Services,Support Services,Supplies and Services,06/02/2012 00:00,426560,1320,REVENUE,Anglia Support Partnership,
Peterborough,http://opendatacommunities.org/id/unitary-authority/peterborough,Peterborough City Council,Children's & Education Services - Children's Social Care,Other Children's & Families Services,Employees,06/02/2012 00:00,427168,891.76,REVENUE,Care Recruitment UK Ltd,
Peterborough,http://opendatacommunities.org/id/unitary-authority/peterborough,Peterborough City Council,"Highways, Roads & Transport Services","Environmental, Safety & Routine Maintenance",Supplies and Services,06/02/2012 00:00,427445,15175.7,REVENUE,Telent Technology Services Ltd,
Peterborough,http://opendatacommunities.org/id/unitary-authority/peterborough,Peterborough City Council,Children's & Education Services - Children's Social Care,Other Children's & Families Services,Employees,06/02/2012 00:00,427362,1597.56,REVENUE,Sanctuary Personnel Ltd,
Peterborough,http://opendatacommunities.org/id/unitary-authority/peterborough,Peterborough City Council,Children's & Education Services - Children's Social Care,Youth Justice,Premises,06/02/2012 00:00,427602,13463.02,REVENUE,Artesian Property Partnership,
Peterborough,http://opendatacommunities.org/id/unitary-authority/peterborough,Peterborough City Council,Children's & Education Services - Children's Social Care,Youth Justice,Premises,06/02/2012 00:00,427604,12621.58,REVENUE,Artesian Property Partnership,
Peterborough,http://opendatacommunities.org/id/unitary-authority/peterborough,Peterborough City Council,Children's & Education Services - Children's Social Care,Children Looked After,Supplies and Services - Transfer Payments,06/02/2012 00:00,427582,1080,REVENUE,Redacted Personal Data,
Peterborough,http://opendatacommunities.org/id/unitary-authority/peterborough,Peterborough City Council,Children's & Education Services - Education,Non-School Funding,Employees,06/02/2012 00:00,427628,3504.6,REVENUE,Top Class Tutors,
Peterborough,http://opendatacommunities.org/id/unitary-authority/peterborough,Peterborough City Council,Capital,Capital,Capital Pending Update to BS,06/02/2012 00:00,427654,50709.18,CAPITAL,Princebuild Limited,
Peterborough,http://opendatacommunities.org/id/unitary-authority/peterborough,Peterborough City Council,Capital,Capital,Capital Pending Update to BS,06/02/2012 00:00,427658,19740,CAPITAL,Volker Highways MEWS Ltd,
Peterborough,http://opendatacommunities.org/id/unitary-authority/peterborough,Peterborough City Council,Planning Services,Planning Policy,Supplies and Services,06/02/2012 00:00,427664,6016.98,REVENUE,Peter Brett Associates,
Peterborough,http://opendatacommunities.org/id/unitary-authority/peterborough,Peterborough City Council,Children's & Education Services - Children's Social Care,Children Looked After,Employees,06/02/2012 00:00,427686,987.9,REVENUE,Frontline Staffing Ltd,
Peterborough,http://opendatacommunities.org/id/unitary-authority/peterborough,Peterborough City Council,Children's & Education Services - Children's Social Care,Other Children's & Families Services,Employees,06/02/2012 00:00,427819,1176.3,REVENUE,Medicare First,
Peterborough,http://opendatacommunities.org/id/unitary-authority/peterborough,Peterborough City Council,Children's & Education Services - Children's Social Care,Other Children's & Families Services,Employees,06/02/2012 00:00,427820,1687.2,REVENUE,Medicare First,
Peterborough,http://opendatacommunities.org/id/unitary-authority/peterborough,Peterborough City Council,Children's & Education Services - Children's Social Care,Other Children's & Families Services,Employees,06/02/2012 00:00,427822,1658.78,REVENUE,Blue Group International Ltd,
Peterborough,http://opendatacommunities.org/id/unitary-authority/peterborough,Peterborough City Council,Children's & Education Services - Children's Social Care,Other Children's & Families Services,Employees,06/02/2012 00:00,427831,1291.26,REVENUE,Medicare First,
Peterborough,http://opendatacommunities.org/id/unitary-authority/peterborough,Peterborough City Council,Children's & Education Services - Children's Social Care,Children Looked After,Employees,06/02/2012 00:00,427832,1436.4,REVENUE,Medicare First,
Peterborough,http://opendatacommunities.org/id/unitary-authority/peterborough,Peterborough City Council,Children's & Education Services - Children's Social Care,Other Children's & Families Services,Employees,06/02/2012 00:00,427833,1224,REVENUE,Medicare First,
Peterborough,http://opendatacommunities.org/id/unitary-authority/peterborough,Peterborough City Council,Children's & Education Services - Children's Social Care,Other Children's & Families Services,Employees,06/02/2012 00:00,427835,2267.57,REVENUE,Medicare First,
Peterborough,http://opendatacommunities.org/id/unitary-authority/peterborough,Peterborough City Council,Children's & Education Services - Children's Social Care,Family Support Services,Third Party Payments,06/02/2012 00:00,427878,21366.25,REVENUE,KIDS,
Peterborough,http://opendatacommunities.org/id/unitary-authority/peterborough,Peterborough City Council,Children's & Education Services - Education,Non-School Funding,Supplies and Services,06/02/2012 00:00,427749,1080,REVENUE,Top Class Tutors,
Peterborough,http://opendatacommunities.org/id/unitary-authority/peterborough,Peterborough City Council,Children's & Education Services - Education,Non-School Funding,Supplies and Services,06/02/2012 00:00,427752,1152,REVENUE,Top Class Tutors,
Peterborough,http://opendatacommunities.org/id/unitary-authority/peterborough,Peterborough City Council,Children's & Education Services - Education,Non-School Funding,Supplies and Services,06/02/2012 00:00,427753,1152,REVENUE,Top Class Tutors,
Peterborough,http://opendatacommunities.org/id/unitary-authority/peterborough,Peterborough City Council,Children's & Education Services - Education,Non-School Funding,Supplies and Services,06/02/2012 00:00,427761,606.8,REVENUE,Redacted Personal Data,
Peterborough,http://opendatacommunities.org/id/unitary-authority/peterborough,Peterborough City Council,Capital,Capital,Capital Pending Update to BS,06/02/2012 00:00,427991,48183.09,CAPITAL,E Bowman & Sons Ltd,
Peterborough,http://opendatacommunities.org/id/unitary-authority/peterborough,Peterborough City Council,Support Services,Support Services,Supplies and Services,06/02/2012 00:00,427994,3741.6,REVENUE,Pentana Ltd,
Peterborough,http://opendatacommunities.org/id/unitary-authority/peterborough,Peterborough City Council,Children's & Education Services - Children's Social Care,Children Looked After,Supplies and Services - Transfer Payments,06/02/2012 00:00,427995,9247.08,REVENUE,Lovell's Hall,
Peterborough,http://opendatacommunities.org/id/unitary-authority/peterborough,Peterborough City Council,Children's & Education Services - Children's Social Care,Children Looked After,Supplies and Services,06/02/2012 00:00,428029,692.28,REVENUE,Excell Network Solutions Ltd,
Peterborough,http://opendatacommunities.org/id/unitary-authority/peterborough,Peterborough City Council,Children's & Education Services - Children's Social Care,Other Children's & Families Services,Employees,06/02/2012 00:00,428678,1274.4,REVENUE,Sanctuary Personnel Ltd,
Peterborough,http://opendatacommunities.org/id/unitary-authority/peterborough,Peterborough City Council,"Highways, Roads & Transport Services",Street Lighting,Supplies and Services,06/02/2012 00:00,428594,589.2,REVENUE,UK Power Networks (operations) Ltd,
Peterborough,http://opendatacommunities.org/id/unitary-authority/peterborough,Peterborough City Council,Capital,Capital,Capital Pending Update to BS,06/02/2012 00:00,428568,2946,CAPITAL,UK Power Networks (operations) Ltd,
Peterborough,http://opendatacommunities.org/id/unitary-authority/peterborough,Peterborough City Council,"Highways, Roads & Transport Services",Street Lighting,Supplies and Services,06/02/2012 00:00,428570,723.6,REVENUE,UK Power Networks (operations) Ltd,
Peterborough,http://opendatacommunities.org/id/unitary-authority/peterborough,Peterborough City Council,Deficit/(Surplus) on Trading Undertakings,Trading Account Surpluses & Deficits,Supplies and Services,06/02/2012 00:00,428584,600,REVENUE,Now Energy Ltd,
Peterborough,http://opendatacommunities.org/id/unitary-authority/peterborough,Peterborough City Council,Court Services,Coroner's Court Service,Supplies and Services,06/02/2012 00:00,429088,2226.4,REVENUE,BDW Practice Account,
Peterborough,http://opendatacommunities.org/id/unitary-authority/peterborough,Peterborough City Council,Deficit/(Surplus) on Trading Undertakings,Trading Account Surpluses & Deficits,Supplies and Services,06/02/2012 00:00,428752,675.13,REVENUE,PG Reeves & Sons,
Peterborough,http://opendatacommunities.org/id/unitary-authority/peterborough,Peterborough City Council,Children's & Education Services - Education,Secondary,Premises,06/02/2012 00:00,429105,4666.34,REVENUE,Npower Ltd,
Peterborough,http://opendatacommunities.org/id/unitary-authority/peterborough,Peterborough City Council,More than one Service Area Category,More than one Service Division,Balance Sheet,06/02/2012 00:00,429129,43204.51,Balance Sheet,Peterborough Provider Services,
Peterborough,http://opendatacommunities.org/id/unitary-authority/peterborough,Peterborough City Council,Adult Social Care,Adult Social Care,Supplies and Services,06/02/2012 00:00,429146,256786.96,REVENUE,Peterborough Provider Services,
Peterborough,http://opendatacommunities.org/id/unitary-authority/peterborough,Peterborough City Council,"Cultural, Environmental and Planning Services",Waste Collection,Transport,06/02/2012 00:00,429425,5335.99,REVENUE,Specialist Fleet Services,
Peterborough,http://opendatacommunities.org/id/unitary-authority/peterborough,Peterborough City Council,Capital,Capital,Capital Pending Update to BS,06/02/2012 00:00,430229,20491.2,CAPITAL,MARS (Construction) Ltd,
Peterborough,http://opendatacommunities.org/id/unitary-authority/peterborough,Peterborough City Council,Children's & Education Services - Children's Social Care,Other Children's & Families Services,Supplies and Services,06/02/2012 00:00,430276,600,REVENUE,"Ashley, Mr Neil",
Peterborough,http://opendatacommunities.org/id/unitary-authority/peterborough,Peterborough City Council,Children's & Education Services - Education,Non-School Funding,Supplies and Services,06/02/2012 00:00,429777,900,REVENUE,"Ashley, Mr Neil",
Peterborough,http://opendatacommunities.org/id/unitary-authority/peterborough,Peterborough City Council,More than one Service Area Category,More than one Service Division,Premises,06/02/2012 00:00,431002,1208.45,REVENUE,Southern Electric,
Peterborough,http://opendatacommunities.org/id/unitary-authority/peterborough,Peterborough City Council,More than one Service Area Category,More than one Service Division,Premises,06/02/2012 00:00,431007,3436.63,REVENUE,Anglian Water,
Peterborough,http://opendatacommunities.org/id/unitary-authority/peterborough,Peterborough City Council,Children's & Education Services - Education,Non-School Funding,Transport,06/02/2012 00:00,431732,1550.4,REVENUE,Goldstar Cabs Ltd,
Peterborough,http://opendatacommunities.org/id/unitary-authority/peterborough,Peterborough City Council,Children's & Education Services - Education,Non-School Funding,Transport,06/02/2012 00:00,431733,1872,REVENUE,Goldstar Cabs Ltd,
Peterborough,http://opendatacommunities.org/id/unitary-authority/peterborough,Peterborough City Council,Children's & Education Services - Education,Non-School Funding,Transport,06/02/2012 00:00,431734,1776,REVENUE,Goldstar Cabs Ltd,
Peterborough,http://opendatacommunities.org/id/unitary-authority/peterborough,Peterborough City Council,Children's & Education Services - Education,Non-School Funding,Transport,06/02/2012 00:00,431735,2076,REVENUE,Goldstar Cabs Ltd,
Peterborough,http://opendatacommunities.org/id/unitary-authority/peterborough,Peterborough City Council,Children's & Education Services - Education,Non-School Funding,Transport,06/02/2012 00:00,431736,2040,REVENUE,Goldstar Cabs Ltd,
Peterborough,http://opendatacommunities.org/id/unitary-authority/peterborough,Peterborough City Council,Children's & Education Services - Education,Non-School Funding,Transport,06/02/2012 00:00,431737,720,REVENUE,Goldstar Cabs Ltd,
Peterborough,http://opendatacommunities.org/id/unitary-authority/peterborough,Peterborough City Council,Children's & Education Services - Education,Non-School Funding,Transport,06/02/2012 00:00,431738,2022,REVENUE,Goldstar Cabs Ltd,
Peterborough,http://opendatacommunities.org/id/unitary-authority/peterborough,Peterborough City Council,Cultural and Related Services,Tourism,Supplies and Services,06/02/2012 00:00,431678,4400,REVENUE,The Ticket Factory,
Peterborough,http://opendatacommunities.org/id/unitary-authority/peterborough,Peterborough City Council,Children's & Education Services - Children's Social Care,Children Looked After,Supplies and Services - Transfer Payments,06/02/2012 00:00,431276,3129,REVENUE,National Fostering Agency,
Peterborough,http://opendatacommunities.org/id/unitary-authority/peterborough,Peterborough City Council,Children's & Education Services - Children's Social Care,Children Looked After,Supplies and Services - Transfer Payments,06/02/2012 00:00,431282,3233.3,REVENUE,National Fostering Agency,
Peterborough,http://opendatacommunities.org/id/unitary-authority/peterborough,Peterborough City Council,More than one Service Area Category,More than one Service Division,Supplies and Services,06/02/2012 00:00,431834,12630,REVENUE,Peterborough City Council,
Peterborough,http://opendatacommunities.org/id/unitary-authority/peterborough,Peterborough City Council,Children's & Education Services - Education,Secondary,More than one Expenses Type,06/02/2012 00:00,431765,758.12,REVENUE,Fletton Student Support Centre,
Peterborough,http://opendatacommunities.org/id/unitary-authority/peterborough,Peterborough City Council,Children's & Education Services - Education,Non-School Funding,Employees,06/02/2012 00:00,431791,1000,REVENUE,Opportunity Peterborough,
Peterborough,http://opendatacommunities.org/id/unitary-authority/peterborough,Peterborough City Council,Children's & Education Services - Children's Social Care,Children's Services - Commissioning and Social Work,Supplies and Services,06/02/2012 00:00,431835,645.86,REVENUE,Serco Ltd,
Peterborough,http://opendatacommunities.org/id/unitary-authority/peterborough,Peterborough City Council,Children's & Education Services - Education,Non-School Funding,Employees,06/02/2012 00:00,431884,1020,REVENUE,Mana Resourcing Ltd,
Peterborough,http://opendatacommunities.org/id/unitary-authority/peterborough,Peterborough City Council,Court Services,Coroner's Court Service,Supplies and Services,06/02/2012 00:00,431957,-10629,REVENUE,P'Boro & Stamford Hosp NHS F/dation Trust,
Peterborough,http://opendatacommunities.org/id/unitary-authority/peterborough,Peterborough City Council,Children's & Education Services - Education,Non-School Funding,Transport,06/02/2012 00:00,431739,1780.8,REVENUE,Goldstar Cabs Ltd,
Peterborough,http://opendatacommunities.org/id/unitary-authority/peterborough,Peterborough City Council,Children's & Education Services - Education,Non-School Funding,Transport,06/02/2012 00:00,431740,744,REVENUE,Goldstar Cabs Ltd,
Peterborough,http://opendatacommunities.org/id/unitary-authority/peterborough,Peterborough City Council,Children's & Education Services - Education,Non-School Funding,Transport,06/02/2012 00:00,431741,1656,REVENUE,Goldstar Cabs Ltd,
Peterborough,http://opendatacommunities.org/id/unitary-authority/peterborough,Peterborough City Council,Children's & Education Services - Education,Non-School Funding,Transport,06/02/2012 00:00,431742,1128,REVENUE,Goldstar Cabs Ltd,
Peterborough,http://opendatacommunities.org/id/unitary-authority/peterborough,Peterborough City Council,Children's & Education Services - Education,Non-School Funding,Transport,06/02/2012 00:00,431743,1363.2,REVENUE,Goldstar Cabs Ltd,
Peterborough,http://opendatacommunities.org/id/unitary-authority/peterborough,Peterborough City Council,Children's & Education Services - Education,Non-School Funding,Transport,06/02/2012 00:00,431746,1752,REVENUE,Goldstar Cabs Ltd,
Peterborough,http://opendatacommunities.org/id/unitary-authority/peterborough,Peterborough City Council,Support Services,Support Services,Premises,07/02/2012 00:00,431984,-64097.94,REVENUE,E.ON Energy,
Peterborough,http://opendatacommunities.org/id/unitary-authority/peterborough,Peterborough City Council,"Highways, Roads & Transport Services",Highways/road (structural),Premises,07/02/2012 00:00,431985,-536.43,REVENUE,Southern Electric,
Peterborough,http://opendatacommunities.org/id/unitary-authority/peterborough,Peterborough City Council,Children's & Education Services - Education,Non-School Funding,Premises,07/02/2012 00:00,431986,-2061.91,REVENUE,Southern Electric,
Peterborough,http://opendatacommunities.org/id/unitary-authority/peterborough,Peterborough City Council,Support Services,Support Services,Premises,07/02/2012 00:00,431987,-1878.2,REVENUE,Southern Electric,
Peterborough,http://opendatacommunities.org/id/unitary-authority/peterborough,Peterborough City Council,Children's & Education Services - Children's Social Care,Children Looked After,Supplies and Services - Transfer Payments,08/02/2012 00:00,401772,3216,REVENUE,Key2,
Peterborough,http://opendatacommunities.org/id/unitary-authority/peterborough,Peterborough City Council,More than one Service Area Category,More than one Service Division,Supplies and Services,08/02/2012 00:00,412606,611.98,REVENUE,AXA PPP Healthcare OHS Ltd,
Peterborough,http://opendatacommunities.org/id/unitary-authority/peterborough,Peterborough City Council,Cultural and Related Services,Recreation & Sport,Transport,08/02/2012 00:00,418501,1590,REVENUE,Atkins Limited,
Peterborough,http://opendatacommunities.org/id/unitary-authority/peterborough,Peterborough City Council,"Highways, Roads & Transport Services","Transport planning, policy and strategy",Transport,08/02/2012 00:00,422599,7994.96,REVENUE,Atkins Limited,
Peterborough,http://opendatacommunities.org/id/unitary-authority/peterborough,Peterborough City Council,Capital,Capital,Capital Pending Update to BS,08/02/2012 00:00,422619,1254.38,CAPITAL,Atkins Limited,
Peterborough,http://opendatacommunities.org/id/unitary-authority/peterborough,Peterborough City Council,Capital,Capital,Capital Pending Update to BS,08/02/2012 00:00,422633,2143.15,CAPITAL,Atkins Limited,
Peterborough,http://opendatacommunities.org/id/unitary-authority/peterborough,Peterborough City Council,Capital,Capital,Capital Pending Update to BS,08/02/2012 00:00,423878,3908.52,CAPITAL,L Garfield (Builders) Ltd,
Peterborough,http://opendatacommunities.org/id/unitary-authority/peterborough,Peterborough City Council,Capital,Capital,Capital Pending Update to BS,08/02/2012 00:00,424934,18000,CAPITAL,L Garfield (Builders) Ltd,
Peterborough,http://opendatacommunities.org/id/unitary-authority/peterborough,Peterborough City Council,Children's & Education Services - Children's Social Care,Other Children's & Families Services,Employees,08/02/2012 00:00,425368,1147.19,REVENUE,Capita Resourcing Ltd,
Peterborough,http://opendatacommunities.org/id/unitary-authority/peterborough,Peterborough City Council,Deficit/(Surplus) on Trading Undertakings,Trading Account Surpluses & Deficits,Supplies and Services,08/02/2012 00:00,425465,509.94,REVENUE,Maydown International Tools Ltd,
Peterborough,http://opendatacommunities.org/id/unitary-authority/peterborough,Peterborough City Council,Children's & Education Services - Children's Social Care,Other Children's & Families Services,Third Party Payments,08/02/2012 00:00,425649,23778.51,REVENUE,YMCA Cambridge & Peterborough,
Peterborough,http://opendatacommunities.org/id/unitary-authority/peterborough,Peterborough City Council,"Highways, Roads & Transport Services",Street Lighting,Supplies and Services,08/02/2012 00:00,425754,7738.24,REVENUE,Volker Highways MEWS Ltd,
Peterborough,http://opendatacommunities.org/id/unitary-authority/peterborough,Peterborough City Council,Children's & Education Services - Children's Social Care,Other Children's & Families Services,Employees,08/02/2012 00:00,426288,1909.2,REVENUE,Capita Resourcing Ltd,
Peterborough,http://opendatacommunities.org/id/unitary-authority/peterborough,Peterborough City Council,Children's & Education Services - Children's Social Care,Other Children's & Families Services,Employees,08/02/2012 00:00,427310,1587.6,REVENUE,Swim,
Peterborough,http://opendatacommunities.org/id/unitary-authority/peterborough,Peterborough City Council,Children's & Education Services - Children's Social Care,Other Children's & Families Services,Employees,08/02/2012 00:00,427312,1587.6,REVENUE,Swim,
Peterborough,http://opendatacommunities.org/id/unitary-authority/peterborough,Peterborough City Council,Children's & Education Services - Children's Social Care,Other Children's & Families Services,Employees,08/02/2012 00:00,427347,1636.4,REVENUE,Swim,
Peterborough,http://opendatacommunities.org/id/unitary-authority/peterborough,Peterborough City Council,Children's & Education Services - Children's Social Care,Other Children's & Families Services,Employees,08/02/2012 00:00,427352,1961.89,REVENUE,Capita Resourcing Ltd,
Peterborough,http://opendatacommunities.org/id/unitary-authority/peterborough,Peterborough City Council,Capital,Capital,Capital Pending Update to BS,08/02/2012 00:00,427684,26967.91,CAPITAL,EIS (Electrical Inst. Solutions Ltd),
Peterborough,http://opendatacommunities.org/id/unitary-authority/peterborough,Peterborough City Council,Capital,Capital,Capital Pending Update to BS,08/02/2012 00:00,427786,9000,CAPITAL,Family Voice Peterborough,
Peterborough,http://opendatacommunities.org/id/unitary-authority/peterborough,Peterborough City Council,Cultural and Related Services,Waste Collection,Supplies and Services,08/02/2012 00:00,427788,1180.26,REVENUE,Waste Recycling Ltd,
Peterborough,http://opendatacommunities.org/id/unitary-authority/peterborough,Peterborough City Council,Cultural and Related Services,Waste Collection,Supplies and Services,08/02/2012 00:00,427790,3618.84,REVENUE,Waste Recycling Ltd,
Peterborough,http://opendatacommunities.org/id/unitary-authority/peterborough,Peterborough City Council,Cultural and Related Services,Waste Collection,Supplies and Services,08/02/2012 00:00,427792,2509.6,REVENUE,Waste Recycling Ltd,
Peterborough,http://opendatacommunities.org/id/unitary-authority/peterborough,Peterborough City Council,Children's & Education Services - Children's Social Care,Family Support Services,Third Party Payments,08/02/2012 00:00,427840,54250,REVENUE,Ormiston Children & Families Trust,
Peterborough,http://opendatacommunities.org/id/unitary-authority/peterborough,Peterborough City Council,Children's & Education Services - Education,Non-School Funding,Employees,08/02/2012 00:00,427848,720,REVENUE,Mana Resourcing Ltd,
Peterborough,http://opendatacommunities.org/id/unitary-authority/peterborough,Peterborough City Council,Cultural and Related Services,Waste Collection,Supplies and Services,08/02/2012 00:00,427825,9410.03,REVENUE,Waste Recycling Ltd,
Peterborough,http://opendatacommunities.org/id/unitary-authority/peterborough,Peterborough City Council,Cultural and Related Services,Waste Collection,Supplies and Services,08/02/2012 00:00,427826,12581.54,REVENUE,Waste Recycling Ltd,
Peterborough,http://opendatacommunities.org/id/unitary-authority/peterborough,Peterborough City Council,Children's & Education Services - Children's Social Care,Support Services & Management Costs,Supplies and Services,08/02/2012 00:00,427763,1752,REVENUE,"Flatman, Mr Graham",
Peterborough,http://opendatacommunities.org/id/unitary-authority/peterborough,Peterborough City Council,Children's & Education Services - Children's Social Care,Family Support Services,Third Party Payments,08/02/2012 00:00,427857,64311.75,REVENUE,Ormiston Children & Families Trust,
Peterborough,http://opendatacommunities.org/id/unitary-authority/peterborough,Peterborough City Council,Children's & Education Services - Children's Social Care,Other Children's & Families Services,Third Party Payments,08/02/2012 00:00,427805,12575,REVENUE,Vivacity Culture and Leisure,
Peterborough,http://opendatacommunities.org/id/unitary-authority/peterborough,Peterborough City Council,Capital,Capital,Capital Pending Update to BS,08/02/2012 00:00,427984,5274,CAPITAL,Ratcliff Land & Engineering Surveys,
Peterborough,http://opendatacommunities.org/id/unitary-authority/peterborough,Peterborough City Council,Children's & Education Services - Children's Social Care,Children Looked After,Supplies and Services - Transfer Payments,08/02/2012 00:00,427986,5531.75,REVENUE,Heath Farm Family Services Ltd,
Peterborough,http://opendatacommunities.org/id/unitary-authority/peterborough,Peterborough City Council,Capital,Capital,Capital Pending Update to BS,08/02/2012 00:00,427964,714,CAPITAL,Ratcliff Land & Engineering Surveys,
Peterborough,http://opendatacommunities.org/id/unitary-authority/peterborough,Peterborough City Council,Capital,Capital,Capital Pending Update to BS,08/02/2012 00:00,427965,2100,CAPITAL,Ratcliff Land & Engineering Surveys,
Peterborough,http://opendatacommunities.org/id/unitary-authority/peterborough,Peterborough City Council,Cultural and Related Services,Waste Collection,Supplies and Services,08/02/2012 00:00,428636,275530.73,REVENUE,Waste Recycling Ltd,
Peterborough,http://opendatacommunities.org/id/unitary-authority/peterborough,Peterborough City Council,Children's & Education Services - Children's Social Care,Children Looked After,Employees,08/02/2012 00:00,428671,1500.66,REVENUE,Randstad Care Ltd,
Peterborough,http://opendatacommunities.org/id/unitary-authority/peterborough,Peterborough City Council,Children's & Education Services - Education,All Schools - apportion across sectors,Supplies and Services,08/02/2012 00:00,428682,3400,REVENUE,Cambridgeshire County Council,
Peterborough,http://opendatacommunities.org/id/unitary-authority/peterborough,Peterborough City Council,Planning Services,Development Control,Supplies and Services,08/02/2012 00:00,428684,659.88,REVENUE,Johnston Press Midlands Division,
Peterborough,http://opendatacommunities.org/id/unitary-authority/peterborough,Peterborough City Council,Children's & Education Services - Children's Social Care,Other Children's & Families Services,Employees,08/02/2012 00:00,428737,1614.61,REVENUE,Capita Resourcing Ltd,
Peterborough,http://opendatacommunities.org/id/unitary-authority/peterborough,Peterborough City Council,Children's & Education Services - Education,Management and support services,Supplies and Services,08/02/2012 00:00,428572,1360.8,REVENUE,Cambridgeshire County Council,
Peterborough,http://opendatacommunities.org/id/unitary-authority/peterborough,Peterborough City Council,Children's & Education Services - Children's Social Care,Support Services & Management Costs,Employees,08/02/2012 00:00,428537,720,REVENUE,Newton Medical,
Peterborough,http://opendatacommunities.org/id/unitary-authority/peterborough,Peterborough City Council,Children's & Education Services - Children's Social Care,Children Looked After,Supplies and Services - Transfer Payments,08/02/2012 00:00,428707,17050,REVENUE,Young Options College Ltd,
Peterborough,http://opendatacommunities.org/id/unitary-authority/peterborough,Peterborough City Council,Capital,Capital,Capital Pending Update to BS,08/02/2012 00:00,428711,1200,CAPITAL,R J Warren Ltd,
Peterborough,http://opendatacommunities.org/id/unitary-authority/peterborough,Peterborough City Council,"Highways, Roads & Transport Services",Street Lighting,Supplies and Services,08/02/2012 00:00,428712,1056,REVENUE,UK Power Networks (operations) Ltd,
Peterborough,http://opendatacommunities.org/id/unitary-authority/peterborough,Peterborough City Council,Deficit/(Surplus) on Trading Undertakings,Trading Account Surpluses & Deficits,Supplies and Services,08/02/2012 00:00,428724,5068.8,REVENUE,Dieselprods limited,
Peterborough,http://opendatacommunities.org/id/unitary-authority/peterborough,Peterborough City Council,Support Services,Support Services,Supplies and Services,08/02/2012 00:00,428590,666,REVENUE,Key People Ltd,
Peterborough,http://opendatacommunities.org/id/unitary-authority/peterborough,Peterborough City Council,Children's & Education Services - Children's Social Care,Children Looked After,Employees,08/02/2012 00:00,428596,561.49,REVENUE,Advantage Healthcare Nursing & Care Ltd,
Peterborough,http://opendatacommunities.org/id/unitary-authority/peterborough,Peterborough City Council,Children's & Education Services - Children's Social Care,Children Looked After,Supplies and Services - Transfer Payments,08/02/2012 00:00,428603,712.99,REVENUE,PC Homes,
Peterborough,http://opendatacommunities.org/id/unitary-authority/peterborough,Peterborough City Council,Children's & Education Services - Children's Social Care,Children Looked After,Supplies and Services - Transfer Payments,08/02/2012 00:00,428604,712.99,REVENUE,PC Homes,
Peterborough,http://opendatacommunities.org/id/unitary-authority/peterborough,Peterborough City Council,Children's & Education Services - Children's Social Care,Children Looked After,Supplies and Services - Transfer Payments,08/02/2012 00:00,428606,712.99,REVENUE,PC Homes,
Peterborough,http://opendatacommunities.org/id/unitary-authority/peterborough,Peterborough City Council,Support Services,Support Services,Employees,08/02/2012 00:00,428626,1069.94,REVENUE,Venn Group Ltd,
Peterborough,http://opendatacommunities.org/id/unitary-authority/peterborough,Peterborough City Council,Support Services,Support Services,Employees,08/02/2012 00:00,428630,1452.59,REVENUE,Venn Group Ltd,
Peterborough,http://opendatacommunities.org/id/unitary-authority/peterborough,Peterborough City Council,Children's & Education Services - Children's Social Care,Other Children's & Families Services,Employees,08/02/2012 00:00,428654,1107.72,REVENUE,Randstad Care Ltd,
Peterborough,http://opendatacommunities.org/id/unitary-authority/peterborough,Peterborough City Council,Children's & Education Services - Children's Social Care,Children Looked After,Employees,08/02/2012 00:00,428665,1151.76,REVENUE,Randstad Care Ltd,
Peterborough,http://opendatacommunities.org/id/unitary-authority/peterborough,Peterborough City Council,Children's & Education Services - Children's Social Care,Children Looked After,Employees,08/02/2012 00:00,428666,863.38,REVENUE,Randstad Care Ltd,
Peterborough,http://opendatacommunities.org/id/unitary-authority/peterborough,Peterborough City Council,Children's & Education Services - Education,Secondary,Supplies and Services,08/02/2012 00:00,428768,8328,REVENUE,NACRO,
Peterborough,http://opendatacommunities.org/id/unitary-authority/peterborough,Peterborough City Council,Children's & Education Services - Education,Secondary,Employees,08/02/2012 00:00,428955,655.08,REVENUE,Mana Resourcing Ltd,
Peterborough,http://opendatacommunities.org/id/unitary-authority/peterborough,Peterborough City Council,More than one Service Area Category,More than one Service Division,Supplies and Services,08/02/2012 00:00,428972,5790,REVENUE,GSL Dardan Ltd,
Peterborough,http://opendatacommunities.org/id/unitary-authority/peterborough,Peterborough City Council,Environmental and Regulatory Services,Regulatory services,Third Party Payments,08/02/2012 00:00,429074,7692.58,REVENUE,Midland Environmental Contracts Ltd,
Peterborough,http://opendatacommunities.org/id/unitary-authority/peterborough,Peterborough City Council,Children's & Education Services - Children's Social Care,Children Looked After,Employees,08/02/2012 00:00,428963,1333.57,REVENUE,Randstad Care Ltd,
Peterborough,http://opendatacommunities.org/id/unitary-authority/peterborough,Peterborough City Council,Children's & Education Services - Children's Social Care,Other Children's & Families Services,Employees,08/02/2012 00:00,428967,2296.37,REVENUE,Randstad Care Ltd,
Peterborough,http://opendatacommunities.org/id/unitary-authority/peterborough,Peterborough City Council,Children's & Education Services - Children's Social Care,Support Services & Management Costs,Employees,08/02/2012 00:00,428973,1312.16,REVENUE,Randstad Care Ltd,
Peterborough,http://opendatacommunities.org/id/unitary-authority/peterborough,Peterborough City Council,Children's & Education Services - Children's Social Care,Support Services & Management Costs,Employees,08/02/2012 00:00,428977,1529.14,REVENUE,Randstad Care Ltd,
Peterborough,http://opendatacommunities.org/id/unitary-authority/peterborough,Peterborough City Council,Children's & Education Services - Children's Social Care,Other Children's & Families Services,Employees,08/02/2012 00:00,428980,578.59,REVENUE,Randstad Care Ltd,
Peterborough,http://opendatacommunities.org/id/unitary-authority/peterborough,Peterborough City Council,Children's & Education Services - Education,Non-School Funding,Employees,08/02/2012 00:00,429010,528,REVENUE,Mana Resourcing Ltd,
Peterborough,http://opendatacommunities.org/id/unitary-authority/peterborough,Peterborough City Council,Children's & Education Services - Education,Primary,Employees,08/02/2012 00:00,428802,763.2,REVENUE,Mana Resourcing Ltd,
Peterborough,http://opendatacommunities.org/id/unitary-authority/peterborough,Peterborough City Council,Children's & Education Services - Children's Social Care,Support Services & Management Costs,Supplies and Services,08/02/2012 00:00,429108,540,REVENUE,"Walker, Miss Maria-Amalia",
Peterborough,http://opendatacommunities.org/id/unitary-authority/peterborough,Peterborough City Council,Planning Services,Development Control,Supplies and Services,08/02/2012 00:00,429165,3600,REVENUE,"Porten, Mr Anthony",
Peterborough,http://opendatacommunities.org/id/unitary-authority/peterborough,Peterborough City Council,Children's & Education Services - Education,Secondary,Employees,08/02/2012 00:00,429111,1028.78,REVENUE,IIC by Education (P'boro) Ltd,
Peterborough,http://opendatacommunities.org/id/unitary-authority/peterborough,Peterborough City Council,Children's & Education Services - Education,Non-School Funding,Employees,08/02/2012 00:00,428794,763.2,REVENUE,Mana Resourcing Ltd,
Peterborough,http://opendatacommunities.org/id/unitary-authority/peterborough,Peterborough City Council,More than one Service Area Category,More than one Service Division,More than one Expenses Type,08/02/2012 00:00,429509,26871.6,REVENUE,Ann Goldsmith Ltd,
Peterborough,http://opendatacommunities.org/id/unitary-authority/peterborough,Peterborough City Council,More than one Service Area Category,More than one Service Division,Supplies and Services,08/02/2012 00:00,429254,1508.83,REVENUE,TNT Post Midlands Ltd,
Peterborough,http://opendatacommunities.org/id/unitary-authority/peterborough,Peterborough City Council,Children's & Education Services - Children's Social Care,Other Children's & Families Services,Employees,08/02/2012 00:00,429217,1864.8,REVENUE,Sellick Partnership Group Limited,
Peterborough,http://opendatacommunities.org/id/unitary-authority/peterborough,Peterborough City Council,Children's & Education Services - Children's Social Care,Children Looked After,Employees,08/02/2012 00:00,429231,812.33,REVENUE,Blue Arrow Ltd,
Peterborough,http://opendatacommunities.org/id/unitary-authority/peterborough,Peterborough City Council,Environmental and Regulatory Services,"Cemetery, Crematorium & Mortuary Services",Supplies and Services,08/02/2012 00:00,429256,952,REVENUE,Anglia Co-operative Funerals,
Peterborough,http://opendatacommunities.org/id/unitary-authority/peterborough,Peterborough City Council,Children's & Education Services - Children's Social Care,Other Children's & Families Services,Employees,08/02/2012 00:00,429261,1864.8,REVENUE,Sellick Partnership Group Limited,
Peterborough,http://opendatacommunities.org/id/unitary-authority/peterborough,Peterborough City Council,"Cultural, Environmental and Planning Services",Waste Collection,Transport,08/02/2012 00:00,429426,5335.99,REVENUE,Specialist Fleet Services,
Peterborough,http://opendatacommunities.org/id/unitary-authority/peterborough,Peterborough City Council,"Highways, Roads & Transport Services",Traffic management & Road Safety,Supplies and Services,08/02/2012 00:00,429429,6807.03,REVENUE,Cambridgeshire County Council,
Peterborough,http://opendatacommunities.org/id/unitary-authority/peterborough,Peterborough City Council,More than one Service Area Category,More than one Service Division,Supplies and Services,08/02/2012 00:00,429611,9267.06,REVENUE,P'Boro & Stamford Hosp NHS F/dation Trust,
Peterborough,http://opendatacommunities.org/id/unitary-authority/peterborough,Peterborough City Council,More than one Service Area Category,More than one Service Division,Supplies and Services,08/02/2012 00:00,429617,1612.87,REVENUE,TNT Post Midlands Ltd,
Peterborough,http://opendatacommunities.org/id/unitary-authority/peterborough,Peterborough City Council,"Highways, Roads & Transport Services",Parking Services,Premises,08/02/2012 00:00,429620,1373.48,REVENUE,E.ON Energy,
Peterborough,http://opendatacommunities.org/id/unitary-authority/peterborough,Peterborough City Council,Housing Services,Homelessness,Supplies and Services,08/02/2012 00:00,429884,719,REVENUE,Restover Lodge Hotel,
Peterborough,http://opendatacommunities.org/id/unitary-authority/peterborough,Peterborough City Council,Housing Services,Homelessness,Supplies and Services,08/02/2012 00:00,429885,851.5,REVENUE,Restover Lodge Hotel,
Peterborough,http://opendatacommunities.org/id/unitary-authority/peterborough,Peterborough City Council,Housing Services,Homelessness,Supplies and Services,08/02/2012 00:00,429888,532.5,REVENUE,Restover Lodge Hotel,
Peterborough,http://opendatacommunities.org/id/unitary-authority/peterborough,Peterborough City Council,Capital,Capital,Capital Pending Update to BS,08/02/2012 00:00,430232,12000,CAPITAL,L Garfield (Builders) Ltd,
Peterborough,http://opendatacommunities.org/id/unitary-authority/peterborough,Peterborough City Council,Children's & Education Services - Children's Social Care,Children Looked After,Supplies and Services,08/02/2012 00:00,430191,2200,REVENUE,Terrence Higgins Trust Ltd,
Peterborough,http://opendatacommunities.org/id/unitary-authority/peterborough,Peterborough City Council,"Highways, Roads & Transport Services",Public Transport,Supplies and Services,08/02/2012 00:00,429781,8378.96,REVENUE,Stagecoach in Peterborough,
Peterborough,http://opendatacommunities.org/id/unitary-authority/peterborough,Peterborough City Council,Children's & Education Services - Children's Social Care,Other Children's & Families Services,Employees,08/02/2012 00:00,429934,1585.08,REVENUE,Sanctuary Personnel Ltd,
Peterborough,http://opendatacommunities.org/id/unitary-authority/peterborough,Peterborough City Council,Planning Services,Economic Development,Employees,08/02/2012 00:00,430303,676.66,REVENUE,Redacted Personal Data,
Peterborough,http://opendatacommunities.org/id/unitary-authority/peterborough,Peterborough City Council,Children's & Education Services - Children's Social Care,Children Looked After,Supplies and Services - Transfer Payments,08/02/2012 00:00,430825,3556.01,REVENUE,Foster Care Associates Ltd FCA,
Peterborough,http://opendatacommunities.org/id/unitary-authority/peterborough,Peterborough City Council,Children's & Education Services - Children's Social Care,Children Looked After,Supplies and Services - Transfer Payments,08/02/2012 00:00,430826,3556.01,REVENUE,Foster Care Associates Ltd FCA,
Peterborough,http://opendatacommunities.org/id/unitary-authority/peterborough,Peterborough City Council,Children's & Education Services - Children's Social Care,Children Looked After,Supplies and Services - Transfer Payments,08/02/2012 00:00,430828,5240.55,REVENUE,Foster Care Associates Ltd FCA,
Peterborough,http://opendatacommunities.org/id/unitary-authority/peterborough,Peterborough City Council,Children's & Education Services - Children's Social Care,Children Looked After,Supplies and Services - Transfer Payments,08/02/2012 00:00,430829,2907.49,REVENUE,Foster Care Associates Ltd FCA,
Peterborough,http://opendatacommunities.org/id/unitary-authority/peterborough,Peterborough City Council,Children's & Education Services - Children's Social Care,Children Looked After,Supplies and Services - Transfer Payments,08/02/2012 00:00,430831,2907.49,REVENUE,Foster Care Associates Ltd FCA,
Peterborough,http://opendatacommunities.org/id/unitary-authority/peterborough,Peterborough City Council,Children's & Education Services - Children's Social Care,Children Looked After,Supplies and Services - Transfer Payments,08/02/2012 00:00,430832,3556.01,REVENUE,Foster Care Associates Ltd FCA,
Peterborough,http://opendatacommunities.org/id/unitary-authority/peterborough,Peterborough City Council,Children's & Education Services - Children's Social Care,Children Looked After,Supplies and Services - Transfer Payments,08/02/2012 00:00,430833,2907.49,REVENUE,Foster Care Associates Ltd FCA,
Peterborough,http://opendatacommunities.org/id/unitary-authority/peterborough,Peterborough City Council,Children's & Education Services - Children's Social Care,Children Looked After,Supplies and Services - Transfer Payments,08/02/2012 00:00,430834,2907.49,REVENUE,Foster Care Associates Ltd FCA,
Peterborough,http://opendatacommunities.org/id/unitary-authority/peterborough,Peterborough City Council,Children's & Education Services - Children's Social Care,Children Looked After,Supplies and Services - Transfer Payments,08/02/2012 00:00,430835,2907.49,REVENUE,Foster Care Associates Ltd FCA,
Peterborough,http://opendatacommunities.org/id/unitary-authority/peterborough,Peterborough City Council,Children's & Education Services - Education,Non-School Funding,Supplies and Services,08/02/2012 00:00,430746,10036.72,REVENUE,Response UK Security & Fire Ltd,
Peterborough,http://opendatacommunities.org/id/unitary-authority/peterborough,Peterborough City Council,Children's & Education Services - Children's Social Care,Support Services & Management Costs,Supplies and Services,08/02/2012 00:00,431098,720,REVENUE,"Woodward-Carlton, Mr D",
Peterborough,http://opendatacommunities.org/id/unitary-authority/peterborough,Peterborough City Council,Capital,Capital,Capital Pending Update to BS,08/02/2012 00:00,430856,526713.49,CAPITAL,Kier Eastern,
Peterborough,http://opendatacommunities.org/id/unitary-authority/peterborough,Peterborough City Council,Corporate & Democratic Core,Corporate Management,Supplies and Services,08/02/2012 00:00,431578,614,REVENUE,Serco Ltd,
Peterborough,http://opendatacommunities.org/id/unitary-authority/peterborough,Peterborough City Council,Deficit/(Surplus) on Trading Undertakings,Trading Account Surpluses & Deficits,Premises,08/02/2012 00:00,431626,1175.14,REVENUE,Princebuild Limited,
Peterborough,http://opendatacommunities.org/id/unitary-authority/peterborough,Peterborough City Council,Children's & Education Services - Children's Social Care,Support Services & Management Costs,Supplies and Services,08/02/2012 00:00,431651,700,REVENUE,HM Courts and Tribunals Service (HMCTS),
Peterborough,http://opendatacommunities.org/id/unitary-authority/peterborough,Peterborough City Council,Planning Services,Support Services & Management Costs,Supplies and Services,08/02/2012 00:00,431652,750,REVENUE,Association of Town Centre Management,
Peterborough,http://opendatacommunities.org/id/unitary-authority/peterborough,Peterborough City Council,Children's & Education Services - Children's Social Care,Support Services & Management Costs,Supplies and Services,08/02/2012 00:00,431675,700,REVENUE,HM Courts and Tribunals Service (HMCTS),
Peterborough,http://opendatacommunities.org/id/unitary-authority/peterborough,Peterborough City Council,Children's & Education Services - Children's Social Care,Support Services & Management Costs,Supplies and Services,08/02/2012 00:00,431677,700,REVENUE,HM Courts and Tribunals Service (HMCTS),
Peterborough,http://opendatacommunities.org/id/unitary-authority/peterborough,Peterborough City Council,Children's & Education Services - Children's Social Care,Support Services & Management Costs,Supplies and Services,08/02/2012 00:00,431679,700,REVENUE,HM Courts and Tribunals Service (HMCTS),
Peterborough,http://opendatacommunities.org/id/unitary-authority/peterborough,Peterborough City Council,Children's & Education Services - Children's Social Care,Support Services & Management Costs,Supplies and Services,08/02/2012 00:00,431680,1900,REVENUE,HM Courts and Tribunals Service (HMCTS),
Peterborough,http://opendatacommunities.org/id/unitary-authority/peterborough,Peterborough City Council,Children's & Education Services - Children's Social Care,Support Services & Management Costs,Supplies and Services,08/02/2012 00:00,431682,1900,REVENUE,HM Courts and Tribunals Service (HMCTS),
Peterborough,http://opendatacommunities.org/id/unitary-authority/peterborough,Peterborough City Council,Children's & Education Services - Children's Social Care,Support Services & Management Costs,Supplies and Services,08/02/2012 00:00,431684,1900,REVENUE,HM Courts and Tribunals Service (HMCTS),
Peterborough,http://opendatacommunities.org/id/unitary-authority/peterborough,Peterborough City Council,"Highways, Roads & Transport Services",Public Transport,Supplies and Services,08/02/2012 00:00,431194,7316.95,REVENUE,National Express Ltd,
Peterborough,http://opendatacommunities.org/id/unitary-authority/peterborough,Peterborough City Council,Children's & Education Services - Children's Social Care,Children Looked After,Transport,08/02/2012 00:00,431607,2085.75,REVENUE,Redacted Personal Data,
Peterborough,http://opendatacommunities.org/id/unitary-authority/peterborough,Peterborough City Council,Children's & Education Services - Children's Social Care,Support Services & Management Costs,Supplies and Services,08/02/2012 00:00,431685,700,REVENUE,HM Courts and Tribunals Service (HMCTS),
Peterborough,http://opendatacommunities.org/id/unitary-authority/peterborough,Peterborough City Council,Children's & Education Services - Children's Social Care,Support Services & Management Costs,Supplies and Services,08/02/2012 00:00,431699,700,REVENUE,HM Courts and Tribunals Service (HMCTS),
Peterborough,http://opendatacommunities.org/id/unitary-authority/peterborough,Peterborough City Council,Capital,Capital,Capital Pending Update to BS,08/02/2012 00:00,431560,7456.8,CAPITAL,Asbestos Insulation Removers Ltd,
Peterborough,http://opendatacommunities.org/id/unitary-authority/peterborough,Peterborough City Council,"Highways, Roads & Transport Services",Parking Services,Supplies and Services,08/02/2012 00:00,432152,1924.61,REVENUE,Loomis UK Ltd,
Peterborough,http://opendatacommunities.org/id/unitary-authority/peterborough,Peterborough City Council,Capital,Capital,Capital Pending Update to BS,08/02/2012 00:00,431770,4350.52,CAPITAL,Frederick F Smith (Builders) Ltd,
Peterborough,http://opendatacommunities.org/id/unitary-authority/peterborough,Peterborough City Council,Adult Social Care,Adult Social Care,Third Party Payments,08/02/2012 00:00,432136,3305909.1,REVENUE,Peterborough PCT,
Peterborough,http://opendatacommunities.org/id/unitary-authority/peterborough,Peterborough City Council,Planning Services,Economic Development,Third Party Payments,08/02/2012 00:00,432160,11775,REVENUE,Age Concern Peterborough.,
Peterborough,http://opendatacommunities.org/id/unitary-authority/peterborough,Peterborough City Council,Planning Services,Economic Development,Third Party Payments,08/02/2012 00:00,432161,4962.5,REVENUE,Age Concern Peterborough.,
Peterborough,http://opendatacommunities.org/id/unitary-authority/peterborough,Peterborough City Council,Support Services,Support Services,Supplies and Services,08/02/2012 00:00,431946,5670,REVENUE,AMTEC Consulting Plc,
Peterborough,http://opendatacommunities.org/id/unitary-authority/peterborough,Peterborough City Council,Support Services,Support Services,Supplies and Services,08/02/2012 00:00,431947,1144.8,REVENUE,AMTEC Consulting Plc,
Peterborough,http://opendatacommunities.org/id/unitary-authority/peterborough,Peterborough City Council,Planning Services,Economic Development,Third Party Payments,08/02/2012 00:00,431948,14354.88,REVENUE,AMTEC Consulting Plc,
Peterborough,http://opendatacommunities.org/id/unitary-authority/peterborough,Peterborough City Council,Planning Services,Economic Development,Supplies and Services,08/02/2012 00:00,431949,991.2,REVENUE,AMTEC Consulting Plc,
Peterborough,http://opendatacommunities.org/id/unitary-authority/peterborough,Peterborough City Council,Support Services,Support Services,Supplies and Services,08/02/2012 00:00,431950,8568,REVENUE,AMTEC Consulting Plc,
Peterborough,http://opendatacommunities.org/id/unitary-authority/peterborough,Peterborough City Council,Support Services,Support Services,Supplies and Services,08/02/2012 00:00,431951,3218.4,REVENUE,AMTEC Consulting Plc,
Peterborough,http://opendatacommunities.org/id/unitary-authority/peterborough,Peterborough City Council,Support Services,Support Services,Supplies and Services,08/02/2012 00:00,431952,10206,REVENUE,AMTEC Consulting Plc,
Peterborough,http://opendatacommunities.org/id/unitary-authority/peterborough,Peterborough City Council,Support Services,Support Services,Supplies and Services,08/02/2012 00:00,431953,4176,REVENUE,AMTEC Consulting Plc,
Peterborough,http://opendatacommunities.org/id/unitary-authority/peterborough,Peterborough City Council,Children's & Education Services - Education,Other School -related Education Functions,Supplies and Services,08/02/2012 00:00,431954,12600,REVENUE,AMTEC Consulting Plc,
Peterborough,http://opendatacommunities.org/id/unitary-authority/peterborough,Peterborough City Council,Central Services to the Public,Elections,Supplies and Services,08/02/2012 00:00,431955,2419.2,REVENUE,AMTEC Consulting Plc,
Peterborough,http://opendatacommunities.org/id/unitary-authority/peterborough,Peterborough City Council,Capital,Capital,Capital Pending Update to BS,08/02/2012 00:00,431956,3866.4,CAPITAL,AMTEC Consulting Plc,
Peterborough,http://opendatacommunities.org/id/unitary-authority/peterborough,Peterborough City Council,Capital,Capital,Capital Pending Update to BS,08/02/2012 00:00,431958,2335.2,CAPITAL,AMTEC Consulting Plc,
Peterborough,http://opendatacommunities.org/id/unitary-authority/peterborough,Peterborough City Council,Capital,Capital,Capital Pending Update to BS,08/02/2012 00:00,431959,59689.51,CAPITAL,AMTEC Consulting Plc,
Peterborough,http://opendatacommunities.org/id/unitary-authority/peterborough,Peterborough City Council,Planning Services,Economic Development,Third Party Payments,08/02/2012 00:00,431960,36126.86,REVENUE,AMTEC Consulting Plc,
Peterborough,http://opendatacommunities.org/id/unitary-authority/peterborough,Peterborough City Council,Adult Social Care,Service Strategy,Supplies and Services,08/02/2012 00:00,431961,53505.6,REVENUE,AMTEC Consulting Plc,
Peterborough,http://opendatacommunities.org/id/unitary-authority/peterborough,Peterborough City Council,Support Services,Support Services,Supplies and Services,08/02/2012 00:00,431962,14640,REVENUE,AMTEC Consulting Plc,
Peterborough,http://opendatacommunities.org/id/unitary-authority/peterborough,Peterborough City Council,Environmental and Regulatory Services,Waste Disposal,Supplies and Services,08/02/2012 00:00,431963,12147.84,REVENUE,AMTEC Consulting Plc,
Peterborough,http://opendatacommunities.org/id/unitary-authority/peterborough,Peterborough City Council,Children's & Education Services - Education,Other School -related Education Functions,Supplies and Services,08/02/2012 00:00,431964,6669.6,REVENUE,AMTEC Consulting Plc,
Peterborough,http://opendatacommunities.org/id/unitary-authority/peterborough,Peterborough City Council,Children's & Education Services - Education,Other School -related Education Functions,Supplies and Services,08/02/2012 00:00,431965,8575.2,REVENUE,AMTEC Consulting Plc,
Peterborough,http://opendatacommunities.org/id/unitary-authority/peterborough,Peterborough City Council,Deficit/(Surplus) on Trading Undertakings,Trading Account Surpluses & Deficits,Supplies and Services,08/02/2012 00:00,431966,1738.8,REVENUE,AMTEC Consulting Plc,
Peterborough,http://opendatacommunities.org/id/unitary-authority/peterborough,Peterborough City Council,Deficit/(Surplus) on Trading Undertakings,Trading Account Surpluses & Deficits,Supplies and Services,08/02/2012 00:00,431967,7700.4,REVENUE,AMTEC Consulting Plc,
Peterborough,http://opendatacommunities.org/id/unitary-authority/peterborough,Peterborough City Council,Support Services,Support Services,Supplies and Services,08/02/2012 00:00,431968,10740,REVENUE,AMTEC Consulting Plc,
Peterborough,http://opendatacommunities.org/id/unitary-authority/peterborough,Peterborough City Council,Capital,Capital,Capital Pending Update to BS,08/02/2012 00:00,431969,15180,CAPITAL,AMTEC Consulting Plc,
Peterborough,http://opendatacommunities.org/id/unitary-authority/peterborough,Peterborough City Council,Capital,Capital,Capital Pending Update to BS,08/02/2012 00:00,431970,8424,CAPITAL,AMTEC Consulting Plc,
Peterborough,http://opendatacommunities.org/id/unitary-authority/peterborough,Peterborough City Council,Support Services,Support Services,Supplies and Services,08/02/2012 00:00,431971,604.8,REVENUE,AMTEC Consulting Plc,
Peterborough,http://opendatacommunities.org/id/unitary-authority/peterborough,Peterborough City Council,Children's & Education Services - Education,Non-School Funding,Transport,08/02/2012 00:00,432027,3590,REVENUE,Shaws Coaches,
Peterborough,http://opendatacommunities.org/id/unitary-authority/peterborough,Peterborough City Council,Children's & Education Services - Education,Non-School Funding,Employees,08/02/2012 00:00,431840,816,REVENUE,Mana Resourcing Ltd,
Peterborough,http://opendatacommunities.org/id/unitary-authority/peterborough,Peterborough City Council,Children's & Education Services - Education,Non-School Funding,Transport,08/02/2012 00:00,432030,873.6,REVENUE,Redacted Personal Data,
Peterborough,http://opendatacommunities.org/id/unitary-authority/peterborough,Peterborough City Council,Children's & Education Services - Children's Social Care,Children Looked After,Premises,08/02/2012 00:00,432192,2066.84,REVENUE,The K A Wing Group Ltd,
Peterborough,http://opendatacommunities.org/id/unitary-authority/peterborough,Peterborough City Council,Children's & Education Services - Education,Secondary,Supplies and Services,08/02/2012 00:00,432155,6840.8,REVENUE,Peterborough Regional College,
Peterborough,http://opendatacommunities.org/id/unitary-authority/peterborough,Peterborough City Council,Children's & Education Services - Education,Non-School Funding,Supplies and Services,08/02/2012 00:00,432112,1400,REVENUE,The Princes Trust,
Peterborough,http://opendatacommunities.org/id/unitary-authority/peterborough,Peterborough City Council,Children's & Education Services - Education,Non-School Funding,Transport,08/02/2012 00:00,432217,856.8,REVENUE,Goldstar Cabs Ltd,
Peterborough,http://opendatacommunities.org/id/unitary-authority/peterborough,Peterborough City Council,Children's & Education Services - Education,Non-School Funding,Transport,08/02/2012 00:00,432218,1940.4,REVENUE,Goldstar Cabs Ltd,
Peterborough,http://opendatacommunities.org/id/unitary-authority/peterborough,Peterborough City Council,Capital,Capital,Capital Pending Update to BS,10/02/2012 00:00,376901,6392.83,CAPITAL,Queensbury Shelters Ltd,
Peterborough,http://opendatacommunities.org/id/unitary-authority/peterborough,Peterborough City Council,Capital,Capital,Capital Pending Update to BS,10/02/2012 00:00,376904,5955.94,CAPITAL,Queensbury Shelters Ltd,
Peterborough,http://opendatacommunities.org/id/unitary-authority/peterborough,Peterborough City Council,Children's & Education Services - Children's Social Care,Children Looked After,Supplies and Services - Transfer Payments,10/02/2012 00:00,422392,3260.89,REVENUE,Alliance Foster Care,
Peterborough,http://opendatacommunities.org/id/unitary-authority/peterborough,Peterborough City Council,Children's & Education Services - Children's Social Care,Support Services & Management Costs,Employees,10/02/2012 00:00,423422,2000,REVENUE,Redacted Personal Data,
Peterborough,http://opendatacommunities.org/id/unitary-authority/peterborough,Peterborough City Council,Children's & Education Services - Children's Social Care,Support Services & Management Costs,Employees,10/02/2012 00:00,423424,1200,REVENUE,Redacted Personal Data,
Peterborough,http://opendatacommunities.org/id/unitary-authority/peterborough,Peterborough City Council,Children's & Education Services - Children's Social Care,Children Looked After,Supplies and Services - Transfer Payments,10/02/2012 00:00,425271,3556.01,REVENUE,Foster Care Associates Ltd FCA,
Peterborough,http://opendatacommunities.org/id/unitary-authority/peterborough,Peterborough City Council,"Highways, Roads & Transport Services",Street Lighting,Supplies and Services,10/02/2012 00:00,425759,66821.2,REVENUE,Volker Highways MEWS Ltd,
Peterborough,http://opendatacommunities.org/id/unitary-authority/peterborough,Peterborough City Council,Children's & Education Services - Children's Social Care,Children Looked After,Supplies and Services - Transfer Payments,10/02/2012 00:00,426929,3069,REVENUE,Key2,
Peterborough,http://opendatacommunities.org/id/unitary-authority/peterborough,Peterborough City Council,Children's & Education Services - Children's Social Care,Children Looked After,Supplies and Services - Transfer Payments,10/02/2012 00:00,426940,3560.56,REVENUE,Key2,
Peterborough,http://opendatacommunities.org/id/unitary-authority/peterborough,Peterborough City Council,Children's & Education Services - Children's Social Care,Other Children's & Families Services,Supplies and Services,10/02/2012 00:00,426884,1385,REVENUE,Progressive Care Ltd,
Peterborough,http://opendatacommunities.org/id/unitary-authority/peterborough,Peterborough City Council,Children's & Education Services - Children's Social Care,Other Children's & Families Services,Supplies and Services,10/02/2012 00:00,426775,2770,REVENUE,Progressive Care Ltd,
Peterborough,http://opendatacommunities.org/id/unitary-authority/peterborough,Peterborough City Council,Children's & Education Services - Children's Social Care,Other Children's & Families Services,Supplies and Services,10/02/2012 00:00,427640,1385,REVENUE,Progressive Care Ltd,
Peterborough,http://opendatacommunities.org/id/unitary-authority/peterborough,Peterborough City Council,Children's & Education Services - Children's Social Care,Other Children's & Families Services,Supplies and Services,10/02/2012 00:00,427853,3080,REVENUE,Progressive Care Ltd,
Peterborough,http://opendatacommunities.org/id/unitary-authority/peterborough,Peterborough City Council,Children's & Education Services - Children's Social Care,Other Children's & Families Services,Supplies and Services,10/02/2012 00:00,427854,660,REVENUE,Progressive Care Ltd,
Peterborough,http://opendatacommunities.org/id/unitary-authority/peterborough,Peterborough City Council,"Highways, Roads & Transport Services","Environmental, Safety & Routine Maintenance",Transport,10/02/2012 00:00,428672,9162.43,REVENUE,Atkins Limited,
Peterborough,http://opendatacommunities.org/id/unitary-authority/peterborough,Peterborough City Council,Capital,Capital,Capital Pending Update to BS,10/02/2012 00:00,428673,4425.89,CAPITAL,Atkins Limited,
Peterborough,http://opendatacommunities.org/id/unitary-authority/peterborough,Peterborough City Council,Capital,Capital,Capital Pending Update to BS,10/02/2012 00:00,428675,1542.43,CAPITAL,Atkins Limited,
Peterborough,http://opendatacommunities.org/id/unitary-authority/peterborough,Peterborough City Council,Capital,Capital,Capital Pending Update to BS,10/02/2012 00:00,428738,520.36,CAPITAL,Atkins Limited,
Peterborough,http://opendatacommunities.org/id/unitary-authority/peterborough,Peterborough City Council,"Highways, Roads & Transport Services","Transport planning, policy and strategy",Transport,10/02/2012 00:00,428536,502.12,REVENUE,Atkins Limited,
Peterborough,http://opendatacommunities.org/id/unitary-authority/peterborough,Peterborough City Council,"Highways, Roads & Transport Services","Transport planning, policy and strategy",Transport,10/02/2012 00:00,428538,5100,REVENUE,Atkins Limited,
Peterborough,http://opendatacommunities.org/id/unitary-authority/peterborough,Peterborough City Council,"Highways, Roads & Transport Services","Transport planning, policy and strategy",Transport,10/02/2012 00:00,428540,6278.4,REVENUE,Atkins Limited,
Peterborough,http://opendatacommunities.org/id/unitary-authority/peterborough,Peterborough City Council,"Highways, Roads & Transport Services",Highways/road (structural),Transport,10/02/2012 00:00,428544,3273.62,REVENUE,Atkins Limited,
Peterborough,http://opendatacommunities.org/id/unitary-authority/peterborough,Peterborough City Council,Capital,Capital,Capital Pending Update to BS,10/02/2012 00:00,428547,2400,CAPITAL,Atkins Limited,
Peterborough,http://opendatacommunities.org/id/unitary-authority/peterborough,Peterborough City Council,"Highways, Roads & Transport Services","Transport planning, policy and strategy",Transport,10/02/2012 00:00,428549,5296.46,REVENUE,Atkins Limited,
Peterborough,http://opendatacommunities.org/id/unitary-authority/peterborough,Peterborough City Council,Children's & Education Services - Education,Secondary,Transport,10/02/2012 00:00,428553,7200,REVENUE,Atkins Limited,
Peterborough,http://opendatacommunities.org/id/unitary-authority/peterborough,Peterborough City Council,Capital,Capital,Capital Pending Update to BS,10/02/2012 00:00,428560,887.18,CAPITAL,Atkins Limited,
Peterborough,http://opendatacommunities.org/id/unitary-authority/peterborough,Peterborough City Council,Capital,Capital,Capital Pending Update to BS,10/02/2012 00:00,428561,2047.25,CAPITAL,Atkins Limited,
Peterborough,http://opendatacommunities.org/id/unitary-authority/peterborough,Peterborough City Council,"Highways, Roads & Transport Services",Street Lighting,Transport,10/02/2012 00:00,428563,1242.02,REVENUE,Atkins Limited,
Peterborough,http://opendatacommunities.org/id/unitary-authority/peterborough,Peterborough City Council,"Highways, Roads & Transport Services","Environmental, Safety & Routine Maintenance",Supplies and Services,10/02/2012 00:00,428564,3411.6,REVENUE,Atkins Limited,
Peterborough,http://opendatacommunities.org/id/unitary-authority/peterborough,Peterborough City Council,"Highways, Roads & Transport Services",Highways/road (structural),Transport,10/02/2012 00:00,428565,1021.37,REVENUE,Atkins Limited,
Peterborough,http://opendatacommunities.org/id/unitary-authority/peterborough,Peterborough City Council,"Highways, Roads & Transport Services","Transport planning, policy and strategy",Transport,10/02/2012 00:00,428717,1209.7,REVENUE,Atkins Limited,
Peterborough,http://opendatacommunities.org/id/unitary-authority/peterborough,Peterborough City Council,Capital,Capital,Capital Pending Update to BS,10/02/2012 00:00,428721,5882.17,CAPITAL,Atkins Limited,
Peterborough,http://opendatacommunities.org/id/unitary-authority/peterborough,Peterborough City Council,Capital,Capital,Capital Pending Update to BS,10/02/2012 00:00,428723,7977.41,CAPITAL,Atkins Limited,
Peterborough,http://opendatacommunities.org/id/unitary-authority/peterborough,Peterborough City Council,Capital,Capital,Capital Pending Update to BS,10/02/2012 00:00,428725,900.72,CAPITAL,Atkins Limited,
Peterborough,http://opendatacommunities.org/id/unitary-authority/peterborough,Peterborough City Council,Capital,Capital,Capital Pending Update to BS,10/02/2012 00:00,428727,2319.83,CAPITAL,Atkins Limited,
Peterborough,http://opendatacommunities.org/id/unitary-authority/peterborough,Peterborough City Council,Capital,Capital,Capital Pending Update to BS,10/02/2012 00:00,428729,3686.04,CAPITAL,Atkins Limited,
Peterborough,http://opendatacommunities.org/id/unitary-authority/peterborough,Peterborough City Council,Capital,Capital,Capital Pending Update to BS,10/02/2012 00:00,428655,7564.13,CAPITAL,Atkins Limited,
Peterborough,http://opendatacommunities.org/id/unitary-authority/peterborough,Peterborough City Council,"Highways, Roads & Transport Services","Transport planning, policy and strategy",Transport,10/02/2012 00:00,428667,2572.03,REVENUE,Atkins Limited,
Peterborough,http://opendatacommunities.org/id/unitary-authority/peterborough,Peterborough City Council,Capital,Capital,Capital Pending Update to BS,10/02/2012 00:00,428668,565.61,CAPITAL,Atkins Limited,
Peterborough,http://opendatacommunities.org/id/unitary-authority/peterborough,Peterborough City Council,Capital,Capital,Capital Pending Update to BS,10/02/2012 00:00,429284,6511.43,CAPITAL,Atkins Limited,
Peterborough,http://opendatacommunities.org/id/unitary-authority/peterborough,Peterborough City Council,Children's & Education Services - Children's Social Care,Children Looked After,Supplies and Services - Transfer Payments,10/02/2012 00:00,430992,3556.01,REVENUE,Foster Care Associates Ltd FCA,
Peterborough,http://opendatacommunities.org/id/unitary-authority/peterborough,Peterborough City Council,Children's & Education Services - Children's Social Care,Children Looked After,Supplies and Services - Transfer Payments,10/02/2012 00:00,430994,3556.01,REVENUE,Foster Care Associates Ltd FCA,
Peterborough,http://opendatacommunities.org/id/unitary-authority/peterborough,Peterborough City Council,Children's & Education Services - Children's Social Care,Children Looked After,Supplies and Services - Transfer Payments,10/02/2012 00:00,430995,2907.49,REVENUE,Foster Care Associates Ltd FCA,
Peterborough,http://opendatacommunities.org/id/unitary-authority/peterborough,Peterborough City Council,Children's & Education Services - Children's Social Care,Children Looked After,Supplies and Services - Transfer Payments,10/02/2012 00:00,430912,3556.01,REVENUE,Foster Care Associates Ltd FCA,
Peterborough,http://opendatacommunities.org/id/unitary-authority/peterborough,Peterborough City Council,Children's & Education Services - Children's Social Care,Children Looked After,Supplies and Services - Transfer Payments,10/02/2012 00:00,430913,3556.01,REVENUE,Foster Care Associates Ltd FCA,
Peterborough,http://opendatacommunities.org/id/unitary-authority/peterborough,Peterborough City Council,Children's & Education Services - Children's Social Care,Children Looked After,Supplies and Services - Transfer Payments,10/02/2012 00:00,430914,3556.01,REVENUE,Foster Care Associates Ltd FCA,
Peterborough,http://opendatacommunities.org/id/unitary-authority/peterborough,Peterborough City Council,More than one Service Area Category,More than one Service Division,More than one Expenses Type,10/02/2012 00:00,431188,61584.59,"Mixture of Capital, Revenue and/or Balance Sheet",Ringway Infrastructure Services,
Peterborough,http://opendatacommunities.org/id/unitary-authority/peterborough,Peterborough City Council,Capital,Capital,Capital Pending Update to BS,10/02/2012 00:00,431280,3474,CAPITAL,Custom Fencing,
Peterborough,http://opendatacommunities.org/id/unitary-authority/peterborough,Peterborough City Council,More than one Service Area Category,More than one Service Division,Balance Sheet,10/02/2012 00:00,432117,4347.6,Balance Sheet,"Harris, Mr Paul",
Peterborough,http://opendatacommunities.org/id/unitary-authority/peterborough,Peterborough City Council,Children's & Education Services - Education,Secondary,Employees,10/02/2012 00:00,431893,6640.8,REVENUE,Mana Resourcing Ltd,
Peterborough,http://opendatacommunities.org/id/unitary-authority/peterborough,Peterborough City Council,Cultural and Related Services,Tourism,Supplies and Services,10/02/2012 00:00,431757,500.03,REVENUE,Vivacity Culture and Leisure,
Peterborough,http://opendatacommunities.org/id/unitary-authority/peterborough,Peterborough City Council,Children's & Education Services - Education,Non-School Funding,Supplies and Services,10/02/2012 00:00,432236,560,REVENUE,Welland Pre-School,
Peterborough,http://opendatacommunities.org/id/unitary-authority/peterborough,Peterborough City Council,Children's & Education Services - Education,Non-School Funding,Supplies and Services,10/02/2012 00:00,432242,560,REVENUE,Welland Pre-School,
Peterborough,http://opendatacommunities.org/id/unitary-authority/peterborough,Peterborough City Council,Children's & Education Services - Education,Non-School Funding,Supplies and Services,10/02/2012 00:00,432245,560,REVENUE,Welland Pre-School,
Peterborough,http://opendatacommunities.org/id/unitary-authority/peterborough,Peterborough City Council,Children's & Education Services - Education,Non-School Funding,Supplies and Services,10/02/2012 00:00,432247,720,REVENUE,Little Steps Day Nursery,
Peterborough,http://opendatacommunities.org/id/unitary-authority/peterborough,Peterborough City Council,Children's & Education Services - Education,Non-School Funding,Supplies and Services,10/02/2012 00:00,432252,840,REVENUE,Little Steps Day Nursery,
Peterborough,http://opendatacommunities.org/id/unitary-authority/peterborough,Peterborough City Council,Support Services,Support Services,Supplies and Services,10/02/2012 00:00,432369,35196.27,REVENUE,Danwood Group Limited,
Peterborough,http://opendatacommunities.org/id/unitary-authority/peterborough,Peterborough City Council,Cultural and Related Services,Support Services & Management Costs,Third Party Payments,10/02/2012 00:00,432330,-7834.57,REVENUE,Vivacity Culture and Leisure,
Peterborough,http://opendatacommunities.org/id/unitary-authority/peterborough,Peterborough City Council,Children's & Education Services - Education,Non-School Funding,Supplies and Services,10/02/2012 00:00,432476,720,REVENUE,M A Associates,
Peterborough,http://opendatacommunities.org/id/unitary-authority/peterborough,Peterborough City Council,Children's & Education Services - Children's Social Care,Youth Justice,Premises,10/02/2012 00:00,432531,623.15,REVENUE,British Gas Business,
Peterborough,http://opendatacommunities.org/id/unitary-authority/peterborough,Peterborough City Council,Children's & Education Services - Education,Primary,Supplies and Services,10/02/2012 00:00,432262,4708.8,REVENUE,Normans,
Peterborough,http://opendatacommunities.org/id/unitary-authority/peterborough,Peterborough City Council,More than one Service Area Category,More than one Service Division,More than one Expenses Type,10/02/2012 00:00,432352,692.79,REVENUE,Redacted Personal Data,
Peterborough,http://opendatacommunities.org/id/unitary-authority/peterborough,Peterborough City Council,Children's & Education Services - Children's Social Care,Children Looked After,Transport,10/02/2012 00:00,432353,1996.2,REVENUE,Redacted Personal Data,
Peterborough,http://opendatacommunities.org/id/unitary-authority/peterborough,Peterborough City Council,Children's & Education Services - Children's Social Care,Children Looked After,Transport,10/02/2012 00:00,432354,2685.15,REVENUE,Redacted Personal Data,
Peterborough,http://opendatacommunities.org/id/unitary-authority/peterborough,Peterborough City Council,Capital,Capital,Capital Pending Update to BS,10/02/2012 00:00,432486,219676.62,CAPITAL,Kier Eastern,
Peterborough,http://opendatacommunities.org/id/unitary-authority/peterborough,Peterborough City Council,Children's & Education Services - Children's Social Care,Children Looked After,Transport,10/02/2012 00:00,432542,1449.45,REVENUE,Redacted Personal Data,
Peterborough,http://opendatacommunities.org/id/unitary-authority/peterborough,Peterborough City Council,Children's & Education Services - Children's Social Care,Other Children's & Families Services,Employees,10/02/2012 00:00,432548,1794.6,REVENUE,Sanctuary Personnel Ltd,
Peterborough,http://opendatacommunities.org/id/unitary-authority/peterborough,Peterborough City Council,More than one Service Area Category,More than one Service Division,Premises,10/02/2012 00:00,432388,1654.77,REVENUE,Anglian Water,
Peterborough,http://opendatacommunities.org/id/unitary-authority/peterborough,Peterborough City Council,More than one Service Area Category,More than one Service Division,Premises,10/02/2012 00:00,432390,52368.32,REVENUE,Southern Electric,
Peterborough,http://opendatacommunities.org/id/unitary-authority/peterborough,Peterborough City Council,Cultural and Related Services,Support Services & Management Costs,Third Party Payments,10/02/2012 00:00,432395,30168,REVENUE,Vivacity Culture and Leisure,
Peterborough,http://opendatacommunities.org/id/unitary-authority/peterborough,Peterborough City Council,Children's & Education Services - Children's Social Care,Support Services & Management Costs,Supplies and Services,10/02/2012 00:00,432425,1800,REVENUE,Just ask James Ltd,
Peterborough,http://opendatacommunities.org/id/unitary-authority/peterborough,Peterborough City Council,"Highways, Roads & Transport Services",Parking Services,Employees,13/02/2012 00:00,400231,537.6,REVENUE,Unity Recruitment Ltd,
Peterborough,http://opendatacommunities.org/id/unitary-authority/peterborough,Peterborough City Council,Planning Services,Recreation & Sport,Employees,13/02/2012 00:00,423503,629.64,REVENUE,Reed Personnel Services Plc,
Peterborough,http://opendatacommunities.org/id/unitary-authority/peterborough,Peterborough City Council,Children's & Education Services - Children's Social Care,Other Children's & Families Services,Employees,13/02/2012 00:00,428664,1218,REVENUE,Care Recruitment UK Ltd,
Peterborough,http://opendatacommunities.org/id/unitary-authority/peterborough,Peterborough City Council,Children's & Education Services - Children's Social Care,Children Looked After,Supplies and Services,13/02/2012 00:00,428683,9854.21,REVENUE,St Andrew's Healthcare,
Peterborough,http://opendatacommunities.org/id/unitary-authority/peterborough,Peterborough City Council,Environmental and Regulatory Services,Regulatory services,Supplies and Services,13/02/2012 00:00,428531,666,REVENUE,Triple SSS Limited,
Peterborough,http://opendatacommunities.org/id/unitary-authority/peterborough,Peterborough City Council,Children's & Education Services - Children's Social Care,Other Children's & Families Services,Employees,13/02/2012 00:00,428648,1554,REVENUE,Blue Group International Ltd,
Peterborough,http://opendatacommunities.org/id/unitary-authority/peterborough,Peterborough City Council,Deficit/(Surplus) on Trading Undertakings,Trading Account Surpluses & Deficits,Supplies and Services,13/02/2012 00:00,428798,1009.2,REVENUE,Haas Automation,
Peterborough,http://opendatacommunities.org/id/unitary-authority/peterborough,Peterborough City Council,Children's & Education Services - Education,All Schools - apportion across sectors,Supplies and Services,13/02/2012 00:00,428801,1058.51,REVENUE,Peterborough Tree Services Ltd,
Peterborough,http://opendatacommunities.org/id/unitary-authority/peterborough,Peterborough City Council,Children's & Education Services - Education,All Schools - apportion across sectors,Supplies and Services,13/02/2012 00:00,428957,6936,REVENUE,Peterborough Tree Services Ltd,
Peterborough,http://opendatacommunities.org/id/unitary-authority/peterborough,Peterborough City Council,Children's & Education Services - Education,All Schools - apportion across sectors,Supplies and Services,13/02/2012 00:00,428960,2976,REVENUE,Peterborough Tree Services Ltd,
Peterborough,http://opendatacommunities.org/id/unitary-authority/peterborough,Peterborough City Council,Children's & Education Services - Education,Non-School Funding,Supplies and Services,13/02/2012 00:00,429073,817.02,REVENUE,National Childminding Association,
Peterborough,http://opendatacommunities.org/id/unitary-authority/peterborough,Peterborough City Council,Capital,Capital,Capital Pending Update to BS,13/02/2012 00:00,429053,6326.16,CAPITAL,Atkins Limited,
Peterborough,http://opendatacommunities.org/id/unitary-authority/peterborough,Peterborough City Council,Cultural and Related Services,Culture & Heritage,Supplies and Services,13/02/2012 00:00,429081,13219.44,REVENUE,Pearce Hire,
Peterborough,http://opendatacommunities.org/id/unitary-authority/peterborough,Peterborough City Council,Environmental and Regulatory Services,"Cemetery, Crematorium & Mortuary Services",Supplies and Services,13/02/2012 00:00,429044,1212,REVENUE,"Strickland, Mr A M",
Peterborough,http://opendatacommunities.org/id/unitary-authority/peterborough,Peterborough City Council,"Highways, Roads & Transport Services",Parking Services,Supplies and Services,13/02/2012 00:00,428810,866.4,REVENUE,BemroseBooth Ltd,
Peterborough,http://opendatacommunities.org/id/unitary-authority/peterborough,Peterborough City Council,Children's & Education Services - Children's Social Care,Other Children's & Families Services,Employees,13/02/2012 00:00,428868,1658.78,REVENUE,Blue Group International Ltd,
Peterborough,http://opendatacommunities.org/id/unitary-authority/peterborough,Peterborough City Council,Environmental and Regulatory Services,Regulatory services,Supplies and Services,13/02/2012 00:00,429014,1800,REVENUE,Civica UK Limited,
Peterborough,http://opendatacommunities.org/id/unitary-authority/peterborough,Peterborough City Council,Children's & Education Services - Children's Social Care,Support Services & Management Costs,Supplies and Services,13/02/2012 00:00,429020,681.75,REVENUE,Redacted Personal Data,
Peterborough,http://opendatacommunities.org/id/unitary-authority/peterborough,Peterborough City Council,Capital,Capital,Capital Pending Update to BS,13/02/2012 00:00,429021,6000,CAPITAL,David Turnock Architects Ltd,
Peterborough,http://opendatacommunities.org/id/unitary-authority/peterborough,Peterborough City Council,Children's & Education Services - Children's Social Care,Other Children's & Families Services,Employees,13/02/2012 00:00,429209,1687.2,REVENUE,Medicare First,
Peterborough,http://opendatacommunities.org/id/unitary-authority/peterborough,Peterborough City Council,Children's & Education Services - Children's Social Care,Other Children's & Families Services,Employees,13/02/2012 00:00,429211,1549.2,REVENUE,Medicare First,
Peterborough,http://opendatacommunities.org/id/unitary-authority/peterborough,Peterborough City Council,Children's & Education Services - Children's Social Care,Children Looked After,Employees,13/02/2012 00:00,429212,1687.2,REVENUE,Medicare First,
Peterborough,http://opendatacommunities.org/id/unitary-authority/peterborough,Peterborough City Council,Children's & Education Services - Children's Social Care,Other Children's & Families Services,Employees,13/02/2012 00:00,429213,1459.2,REVENUE,Medicare First,
Peterborough,http://opendatacommunities.org/id/unitary-authority/peterborough,Peterborough City Council,Children's & Education Services - Children's Social Care,Other Children's & Families Services,Employees,13/02/2012 00:00,429214,1921.14,REVENUE,Medicare First,
Peterborough,http://opendatacommunities.org/id/unitary-authority/peterborough,Peterborough City Council,Support Services,Support Services,Supplies and Services,13/02/2012 00:00,429276,540,REVENUE,"Ashley, Mr Neil",
Peterborough,http://opendatacommunities.org/id/unitary-authority/peterborough,Peterborough City Council,Cultural and Related Services,Waste Collection,Supplies and Services,13/02/2012 00:00,429910,3694.74,REVENUE,Mid UK Recycling Ltd,
Peterborough,http://opendatacommunities.org/id/unitary-authority/peterborough,Peterborough City Council,Capital,Capital,Capital Pending Update to BS,13/02/2012 00:00,430224,7718.98,CAPITAL,UK Power Networks (operations) Ltd,
Peterborough,http://opendatacommunities.org/id/unitary-authority/peterborough,Peterborough City Council,Children's & Education Services - Children's Social Care,Children Looked After,Supplies and Services - Transfer Payments,13/02/2012 00:00,430283,34823.75,REVENUE,The Regard Partnership Limited,
Peterborough,http://opendatacommunities.org/id/unitary-authority/peterborough,Peterborough City Council,Deficit/(Surplus) on Trading Undertakings,Trading Account Surpluses & Deficits,Supplies and Services,13/02/2012 00:00,429743,703.87,REVENUE,Carillon Industrial Services Ltd,
Peterborough,http://opendatacommunities.org/id/unitary-authority/peterborough,Peterborough City Council,Capital,Capital,Capital Pending Update to BS,13/02/2012 00:00,431574,182678.14,CAPITAL,Kier Eastern,
Peterborough,http://opendatacommunities.org/id/unitary-authority/peterborough,Peterborough City Council,Cultural and Related Services,Tourism,Supplies and Services,13/02/2012 00:00,431581,514.08,REVENUE,Emblem Print Products Ltd,
Peterborough,http://opendatacommunities.org/id/unitary-authority/peterborough,Peterborough City Council,Capital,Capital,Capital Pending Update to BS,13/02/2012 00:00,432250,11906.6,CAPITAL,Princebuild Limited,
Peterborough,http://opendatacommunities.org/id/unitary-authority/peterborough,Peterborough City Council,"Cultural, Environmental and Planning Services",Waste Collection,More than one Expenses Type,13/02/2012 00:00,432466,6308.34,REVENUE,Elliott Group Limited,
Peterborough,http://opendatacommunities.org/id/unitary-authority/peterborough,Peterborough City Council,"Highways, Roads & Transport Services",Parking Services,Supplies and Services,13/02/2012 00:00,432680,-818.4,REVENUE,BemroseBooth Ltd,
Peterborough,http://opendatacommunities.org/id/unitary-authority/peterborough,Peterborough City Council,Cultural and Related Services,Culture & Heritage,Supplies and Services,13/02/2012 00:00,432686,5100,REVENUE,HONAV UK LIMITED,
Peterborough,http://opendatacommunities.org/id/unitary-authority/peterborough,Peterborough City Council,Children's & Education Services - Children's Social Care,More than one Service Division,Supplies and Services,13/02/2012 00:00,432627,891.78,REVENUE,Children & Families Looked After Children,
Peterborough,http://opendatacommunities.org/id/unitary-authority/peterborough,Peterborough City Council,Children's & Education Services - Children's Social Care,Other Children's & Families Services,Employees,15/02/2012 00:00,412063,1144.21,REVENUE,Capita Resourcing Ltd,
Peterborough,http://opendatacommunities.org/id/unitary-authority/peterborough,Peterborough City Council,Children's & Education Services - Children's Social Care,Other Children's & Families Services,Employees,15/02/2012 00:00,413008,945,REVENUE,Sanctuary Personnel Ltd,
Peterborough,http://opendatacommunities.org/id/unitary-authority/peterborough,Peterborough City Council,Children's & Education Services - Children's Social Care,Other Children's & Families Services,Employees,15/02/2012 00:00,413101,1150.4,REVENUE,Capita Resourcing Ltd,
Peterborough,http://opendatacommunities.org/id/unitary-authority/peterborough,Peterborough City Council,Children's & Education Services - Children's Social Care,Other Children's & Families Services,Employees,15/02/2012 00:00,414056,1147.09,REVENUE,Capita Resourcing Ltd,
Peterborough,http://opendatacommunities.org/id/unitary-authority/peterborough,Peterborough City Council,Children's & Education Services - Children's Social Care,Other Children's & Families Services,Supplies and Services,15/02/2012 00:00,414064,3182.28,REVENUE,Applied Language Solutions,
Peterborough,http://opendatacommunities.org/id/unitary-authority/peterborough,Peterborough City Council,More than one Service Area Category,More than one Service Division,Supplies and Services,15/02/2012 00:00,415028,2804.11,REVENUE,Applied Language Solutions,
Peterborough,http://opendatacommunities.org/id/unitary-authority/peterborough,Peterborough City Council,Children's & Education Services - Children's Social Care,Other Children's & Families Services,Employees,15/02/2012 00:00,415490,1140.76,REVENUE,Capita Resourcing Ltd,
Peterborough,http://opendatacommunities.org/id/unitary-authority/peterborough,Peterborough City Council,Children's & Education Services - Children's Social Care,Other Children's & Families Services,Employees,15/02/2012 00:00,417053,1665,REVENUE,Care Recruitment UK Ltd,
Peterborough,http://opendatacommunities.org/id/unitary-authority/peterborough,Peterborough City Council,Children's & Education Services - Children's Social Care,Other Children's & Families Services,Employees,15/02/2012 00:00,418324,1144.74,REVENUE,Capita Resourcing Ltd,
Peterborough,http://opendatacommunities.org/id/unitary-authority/peterborough,Peterborough City Council,Children's & Education Services - Children's Social Care,Other Children's & Families Services,Employees,15/02/2012 00:00,418739,1665,REVENUE,Care Recruitment UK Ltd,
Peterborough,http://opendatacommunities.org/id/unitary-authority/peterborough,Peterborough City Council,Children's & Education Services - Children's Social Care,Other Children's & Families Services,Employees,15/02/2012 00:00,419152,1665,REVENUE,Care Recruitment UK Ltd,
Peterborough,http://opendatacommunities.org/id/unitary-authority/peterborough,Peterborough City Council,Children's & Education Services - Children's Social Care,Other Children's & Families Services,Employees,15/02/2012 00:00,419620,1147.09,REVENUE,Capita Resourcing Ltd,
Peterborough,http://opendatacommunities.org/id/unitary-authority/peterborough,Peterborough City Council,Children's & Education Services - Children's Social Care,Other Children's & Families Services,Employees,15/02/2012 00:00,420270,1665,REVENUE,Care Recruitment UK Ltd,
Peterborough,http://opendatacommunities.org/id/unitary-authority/peterborough,Peterborough City Council,Children's & Education Services - Children's Social Care,Other Children's & Families Services,Employees,15/02/2012 00:00,422000,1723.56,REVENUE,Care Recruitment UK Ltd,
Peterborough,http://opendatacommunities.org/id/unitary-authority/peterborough,Peterborough City Council,Children's & Education Services - Children's Social Care,Other Children's & Families Services,Employees,15/02/2012 00:00,423158,1665,REVENUE,Care Recruitment UK Ltd,
Peterborough,http://opendatacommunities.org/id/unitary-authority/peterborough,Peterborough City Council,Children's & Education Services - Children's Social Care,Other Children's & Families Services,Employees,15/02/2012 00:00,424896,1765.92,REVENUE,Care Recruitment UK Ltd,
Peterborough,http://opendatacommunities.org/id/unitary-authority/peterborough,Peterborough City Council,Children's & Education Services - Education,Secondary,Employees,15/02/2012 00:00,425589,8835.48,REVENUE,Mana Resourcing Ltd,
Peterborough,http://opendatacommunities.org/id/unitary-authority/peterborough,Peterborough City Council,Children's & Education Services - Children's Social Care,Other Children's & Families Services,Employees,15/02/2012 00:00,427166,1665,REVENUE,Care Recruitment UK Ltd,
Peterborough,http://opendatacommunities.org/id/unitary-authority/peterborough,Peterborough City Council,Children's & Education Services - Children's Social Care,Other Children's & Families Services,Employees,15/02/2012 00:00,429061,2283.76,REVENUE,Care Recruitment UK Ltd,
Peterborough,http://opendatacommunities.org/id/unitary-authority/peterborough,Peterborough City Council,Support Services,Support Services,Premises,15/02/2012 00:00,429063,1056,REVENUE,Hereward Stationers & Printers Ltd,
Peterborough,http://opendatacommunities.org/id/unitary-authority/peterborough,Peterborough City Council,Support Services,Support Services,Premises,15/02/2012 00:00,429065,1056,REVENUE,Hereward Stationers & Printers Ltd,
Peterborough,http://opendatacommunities.org/id/unitary-authority/peterborough,Peterborough City Council,Children's & Education Services - Children's Social Care,Other Children's & Families Services,Employees,15/02/2012 00:00,429091,1665,REVENUE,Frontline Staffing Ltd,
Peterborough,http://opendatacommunities.org/id/unitary-authority/peterborough,Peterborough City Council,Housing Services,Private Sector Housing Renewal,Supplies and Services,15/02/2012 00:00,429169,1534.25,REVENUE,Nightingale Services,
Peterborough,http://opendatacommunities.org/id/unitary-authority/peterborough,Peterborough City Council,Children's & Education Services - Children's Social Care,Children Looked After,Supplies and Services - Transfer Payments,15/02/2012 00:00,429449,11600,REVENUE,Continuum Care & Educ. Group.,
Peterborough,http://opendatacommunities.org/id/unitary-authority/peterborough,Peterborough City Council,Children's & Education Services - Children's Social Care,Children Looked After,Supplies and Services - Transfer Payments,15/02/2012 00:00,429450,11185.59,REVENUE,Continuum Care & Educ. Group.,
Peterborough,http://opendatacommunities.org/id/unitary-authority/peterborough,Peterborough City Council,Capital,Capital,Capital Pending Update to BS,15/02/2012 00:00,429505,1075.81,CAPITAL,British Telecom PLC,
Peterborough,http://opendatacommunities.org/id/unitary-authority/peterborough,Peterborough City Council,Children's & Education Services - Children's Social Care,Children Looked After,Employees,15/02/2012 00:00,429474,1357.2,REVENUE,Eden Brown Ltd,
Peterborough,http://opendatacommunities.org/id/unitary-authority/peterborough,Peterborough City Council,Children's & Education Services - Children's Social Care,Other Children's & Families Services,Third Party Payments,15/02/2012 00:00,429186,15000,REVENUE,DRINKSENSE,
Peterborough,http://opendatacommunities.org/id/unitary-authority/peterborough,Peterborough City Council,Capital,Capital,Capital Pending Update to BS,15/02/2012 00:00,429550,9026.4,CAPITAL,UK Power Networks (operations) Ltd,
Peterborough,http://opendatacommunities.org/id/unitary-authority/peterborough,Peterborough City Council,Children's & Education Services - Children's Social Care,Children's Services - Commissioning and Social Work,Third Party Payments,15/02/2012 00:00,429564,13750,REVENUE,Cambs & P'boro NHS Foundation Trust,
Peterborough,http://opendatacommunities.org/id/unitary-authority/peterborough,Peterborough City Council,Children's & Education Services - Children's Social Care,Other Children's & Families Services,Employees,15/02/2012 00:00,429585,1399.44,REVENUE,Capita Resourcing Ltd,
Peterborough,http://opendatacommunities.org/id/unitary-authority/peterborough,Peterborough City Council,Planning Services,Economic Development,Employees,15/02/2012 00:00,429595,1355.86,REVENUE,The Synergy Group,
Peterborough,http://opendatacommunities.org/id/unitary-authority/peterborough,Peterborough City Council,Planning Services,Economic Development,Employees,15/02/2012 00:00,429596,1301.62,REVENUE,The Synergy Group,
Peterborough,http://opendatacommunities.org/id/unitary-authority/peterborough,Peterborough City Council,Children's & Education Services - Children's Social Care,Other Children's & Families Services,Employees,15/02/2012 00:00,429181,2948.04,REVENUE,Randstad Care Ltd,
Peterborough,http://opendatacommunities.org/id/unitary-authority/peterborough,Peterborough City Council,Children's & Education Services - Children's Social Care,Other Children's & Families Services,Employees,15/02/2012 00:00,429183,1529.14,REVENUE,Randstad Care Ltd,
Peterborough,http://opendatacommunities.org/id/unitary-authority/peterborough,Peterborough City Council,Children's & Education Services - Children's Social Care,Support Services & Management Costs,Employees,15/02/2012 00:00,429184,1529.14,REVENUE,Randstad Care Ltd,
Peterborough,http://opendatacommunities.org/id/unitary-authority/peterborough,Peterborough City Council,Children's & Education Services - Children's Social Care,Family Support Services,Employees,15/02/2012 00:00,429207,2415.6,REVENUE,Jenx Ltd,
Peterborough,http://opendatacommunities.org/id/unitary-authority/peterborough,Peterborough City Council,Children's & Education Services - Education,Non-School Funding,Supplies and Services,15/02/2012 00:00,429224,597,REVENUE,City College Peterborough,
Peterborough,http://opendatacommunities.org/id/unitary-authority/peterborough,Peterborough City Council,Capital,Capital,Capital Pending Update to BS,15/02/2012 00:00,429236,13840.72,CAPITAL,British Telecom PLC,
Peterborough,http://opendatacommunities.org/id/unitary-authority/peterborough,Peterborough City Council,Children's & Education Services - Education,Non-School Funding,Supplies and Services,15/02/2012 00:00,429244,10639.2,REVENUE,Continuum Care & Educ. Group.,
Peterborough,http://opendatacommunities.org/id/unitary-authority/peterborough,Peterborough City Council,Children's & Education Services - Education,Non-School Funding,Supplies and Services,15/02/2012 00:00,429246,10639.2,REVENUE,Continuum Care & Educ. Group.,
Peterborough,http://opendatacommunities.org/id/unitary-authority/peterborough,Peterborough City Council,Children's & Education Services - Education,Non-School Funding,Supplies and Services,15/02/2012 00:00,429247,10639.2,REVENUE,Continuum Care & Educ. Group.,
Peterborough,http://opendatacommunities.org/id/unitary-authority/peterborough,Peterborough City Council,Children's & Education Services - Children's Social Care,Children Looked After,Supplies and Services,15/02/2012 00:00,429249,10639.2,REVENUE,Continuum Care & Educ. Group.,
Peterborough,http://opendatacommunities.org/id/unitary-authority/peterborough,Peterborough City Council,Children's & Education Services - Education,Non-School Funding,Supplies and Services,15/02/2012 00:00,429250,10639.2,REVENUE,Continuum Care & Educ. Group.,
Peterborough,http://opendatacommunities.org/id/unitary-authority/peterborough,Peterborough City Council,Children's & Education Services - Children's Social Care,Children Looked After,Supplies and Services,15/02/2012 00:00,429252,10639.2,REVENUE,Continuum Care & Educ. Group.,
Peterborough,http://opendatacommunities.org/id/unitary-authority/peterborough,Peterborough City Council,Cultural and Related Services,Waste Collection,Supplies and Services,15/02/2012 00:00,429263,6234.1,REVENUE,H W Martin Waste Ltd,
Peterborough,http://opendatacommunities.org/id/unitary-authority/peterborough,Peterborough City Council,"Highways, Roads & Transport Services",Traffic management & Road Safety,Supplies and Services,15/02/2012 00:00,429269,793.79,REVENUE,Johnston Press Midlands Division,
Peterborough,http://opendatacommunities.org/id/unitary-authority/peterborough,Peterborough City Council,Children's & Education Services - Children's Social Care,Service Strategy,Supplies and Services,15/02/2012 00:00,429431,1414.8,REVENUE,Terrier Management Services,
Peterborough,http://opendatacommunities.org/id/unitary-authority/peterborough,Peterborough City Council,Planning Services,Economic Development,Employees,15/02/2012 00:00,429173,1669.85,REVENUE,The Synergy Group,
Peterborough,http://opendatacommunities.org/id/unitary-authority/peterborough,Peterborough City Council,Children's & Education Services - Children's Social Care,Other Children's & Families Services,Employees,15/02/2012 00:00,429178,1366.19,REVENUE,Randstad Care Ltd,
Peterborough,http://opendatacommunities.org/id/unitary-authority/peterborough,Peterborough City Council,Support Services,Support Services,Supplies and Services,15/02/2012 00:00,429526,7339.1,REVENUE,Serco Ltd,
Peterborough,http://opendatacommunities.org/id/unitary-authority/peterborough,Peterborough City Council,Environmental and Regulatory Services,Environmental Initiatives,Supplies and Services,15/02/2012 00:00,429529,1759.8,REVENUE,Serco Ltd,
Peterborough,http://opendatacommunities.org/id/unitary-authority/peterborough,Peterborough City Council,Corporate & Democratic Core,Corporate Management,Supplies and Services,15/02/2012 00:00,429536,1640.7,REVENUE,Serco Ltd,
Peterborough,http://opendatacommunities.org/id/unitary-authority/peterborough,Peterborough City Council,Capital,Capital,Capital Pending Update to BS,15/02/2012 00:00,429540,20428.02,CAPITAL,Serco Ltd,
Peterborough,http://opendatacommunities.org/id/unitary-authority/peterborough,Peterborough City Council,Environmental and Regulatory Services,"Cemetery, Crematorium & Mortuary Services",Supplies and Services,15/02/2012 00:00,429493,1038,REVENUE,Ashdown Supplies,
Peterborough,http://opendatacommunities.org/id/unitary-authority/peterborough,Peterborough City Council,Capital,Capital,Capital Pending Update to BS,15/02/2012 00:00,429541,8548.32,CAPITAL,Virgin Media Ltd,
Peterborough,http://opendatacommunities.org/id/unitary-authority/peterborough,Peterborough City Council,Support Services,Support Services,Supplies and Services,15/02/2012 00:00,429543,9380.33,REVENUE,Serco Ltd,
Peterborough,http://opendatacommunities.org/id/unitary-authority/peterborough,Peterborough City Council,Planning Services,Economic Development,Employees,15/02/2012 00:00,429598,1079.29,REVENUE,The Synergy Group,
Peterborough,http://opendatacommunities.org/id/unitary-authority/peterborough,Peterborough City Council,Planning Services,Economic Development,Employees,15/02/2012 00:00,429599,1870.02,REVENUE,The Synergy Group,
Peterborough,http://opendatacommunities.org/id/unitary-authority/peterborough,Peterborough City Council,Children's & Education Services - Children's Social Care,Children Looked After,Supplies and Services - Transfer Payments,15/02/2012 00:00,430004,2878.57,REVENUE,Nene Valley Fostering Agency,
Peterborough,http://opendatacommunities.org/id/unitary-authority/peterborough,Peterborough City Council,Children's & Education Services - Children's Social Care,Children Looked After,Supplies and Services - Transfer Payments,15/02/2012 00:00,430005,2878.57,REVENUE,Nene Valley Fostering Agency,
Peterborough,http://opendatacommunities.org/id/unitary-authority/peterborough,Peterborough City Council,Children's & Education Services - Children's Social Care,Children Looked After,Supplies and Services - Transfer Payments,15/02/2012 00:00,430021,3434.36,REVENUE,Nene Valley Fostering Agency,
Peterborough,http://opendatacommunities.org/id/unitary-authority/peterborough,Peterborough City Council,Support Services,Support Services,Supplies and Services,15/02/2012 00:00,430124,540,REVENUE,"Ashley, Mr Neil",
Peterborough,http://opendatacommunities.org/id/unitary-authority/peterborough,Peterborough City Council,Children's & Education Services - Children's Social Care,Children Looked After,Supplies and Services - Transfer Payments,15/02/2012 00:00,430003,3011.43,REVENUE,Nene Valley Fostering Agency,
Peterborough,http://opendatacommunities.org/id/unitary-authority/peterborough,Peterborough City Council,Children's & Education Services - Children's Social Care,Children Looked After,Supplies and Services - Transfer Payments,15/02/2012 00:00,430023,2878.57,REVENUE,Pathway Care (West Wales) Ltd,
Peterborough,http://opendatacommunities.org/id/unitary-authority/peterborough,Peterborough City Council,Support Services,Support Services,Supplies and Services,15/02/2012 00:00,430277,540,REVENUE,"Ashley, Mr Neil",
Peterborough,http://opendatacommunities.org/id/unitary-authority/peterborough,Peterborough City Council,Children's & Education Services - Children's Social Care,Children Looked After,Employees,15/02/2012 00:00,430227,868.8,REVENUE,Textbook Teachers,
Peterborough,http://opendatacommunities.org/id/unitary-authority/peterborough,Peterborough City Council,Environmental and Regulatory Services,"Cemetery, Crematorium & Mortuary Services",Supplies and Services,15/02/2012 00:00,430190,812.52,REVENUE,Barlow Tyrie Ltd,
Peterborough,http://opendatacommunities.org/id/unitary-authority/peterborough,Peterborough City Council,Children's & Education Services - Education,Secondary,Supplies and Services,15/02/2012 00:00,430196,581.28,REVENUE,M A Associates,
Peterborough,http://opendatacommunities.org/id/unitary-authority/peterborough,Peterborough City Council,Deficit/(Surplus) on Trading Undertakings,Trading Account Surpluses & Deficits,Supplies and Services,15/02/2012 00:00,429767,1067.16,REVENUE,Marlor Tooling Ltd,
Peterborough,http://opendatacommunities.org/id/unitary-authority/peterborough,Peterborough City Council,Deficit/(Surplus) on Trading Undertakings,Trading Account Surpluses & Deficits,Supplies and Services,15/02/2012 00:00,429773,749.04,REVENUE,M O 8 Specialities Ltd,
Peterborough,http://opendatacommunities.org/id/unitary-authority/peterborough,Peterborough City Council,Children's & Education Services - Children's Social Care,Family Support Services,Supplies and Services,15/02/2012 00:00,429779,930,REVENUE,P F S Builders & Contractors,
Peterborough,http://opendatacommunities.org/id/unitary-authority/peterborough,Peterborough City Council,Children's & Education Services - Children's Social Care,Children Looked After,Supplies and Services - Transfer Payments,15/02/2012 00:00,429964,2838.89,REVENUE,Nene Valley Fostering Agency,
Peterborough,http://opendatacommunities.org/id/unitary-authority/peterborough,Peterborough City Council,Children's & Education Services - Children's Social Care,Children Looked After,Supplies and Services - Transfer Payments,15/02/2012 00:00,429984,3007.66,REVENUE,Nene Valley Fostering Agency,
Peterborough,http://opendatacommunities.org/id/unitary-authority/peterborough,Peterborough City Council,Children's & Education Services - Children's Social Care,Children Looked After,Supplies and Services - Transfer Payments,15/02/2012 00:00,429985,2886.54,REVENUE,Nene Valley Fostering Agency,
Peterborough,http://opendatacommunities.org/id/unitary-authority/peterborough,Peterborough City Council,Children's & Education Services - Children's Social Care,Children Looked After,Supplies and Services - Transfer Payments,15/02/2012 00:00,429986,3239.94,REVENUE,Nene Valley Fostering Agency,
Peterborough,http://opendatacommunities.org/id/unitary-authority/peterborough,Peterborough City Council,"Highways, Roads & Transport Services",Street Lighting,Supplies and Services,15/02/2012 00:00,429989,589.2,REVENUE,UK Power Networks (operations) Ltd,
Peterborough,http://opendatacommunities.org/id/unitary-authority/peterborough,Peterborough City Council,More than one Service Area Category,More than one Service Division,More than one Expenses Type,15/02/2012 00:00,429990,12297.6,"Mixture of Capital, Revenue and/or Balance Sheet",UK Power Networks (operations) Ltd,
Peterborough,http://opendatacommunities.org/id/unitary-authority/peterborough,Peterborough City Council,"Highways, Roads & Transport Services","Transport planning, policy and strategy",Transport,15/02/2012 00:00,429737,517.19,REVENUE,Burnt Tree Group,
Peterborough,http://opendatacommunities.org/id/unitary-authority/peterborough,Peterborough City Council,Children's & Education Services - Children's Social Care,Family Support Services,Employees,15/02/2012 00:00,429744,2359.2,REVENUE,Jenx Ltd,
Peterborough,http://opendatacommunities.org/id/unitary-authority/peterborough,Peterborough City Council,Children's & Education Services - Children's Social Care,Family Support Services,Employees,15/02/2012 00:00,429745,2950.8,REVENUE,Jenx Ltd,
Peterborough,http://opendatacommunities.org/id/unitary-authority/peterborough,Peterborough City Council,Children's & Education Services - Children's Social Care,Children Looked After,Supplies and Services - Transfer Payments,15/02/2012 00:00,430011,2878.57,REVENUE,Nene Valley Fostering Agency,
Peterborough,http://opendatacommunities.org/id/unitary-authority/peterborough,Peterborough City Council,Children's & Education Services - Children's Social Care,Children Looked After,Supplies and Services - Transfer Payments,15/02/2012 00:00,430013,3011.43,REVENUE,Nene Valley Fostering Agency,
Peterborough,http://opendatacommunities.org/id/unitary-authority/peterborough,Peterborough City Council,Children's & Education Services - Children's Social Care,Children Looked After,Supplies and Services - Transfer Payments,15/02/2012 00:00,430014,2878.57,REVENUE,Nene Valley Fostering Agency,
Peterborough,http://opendatacommunities.org/id/unitary-authority/peterborough,Peterborough City Council,Children's & Education Services - Children's Social Care,Children Looked After,Supplies and Services - Transfer Payments,15/02/2012 00:00,430016,3011.43,REVENUE,Nene Valley Fostering Agency,
Peterborough,http://opendatacommunities.org/id/unitary-authority/peterborough,Peterborough City Council,Children's & Education Services - Children's Social Care,Children Looked After,Supplies and Services - Transfer Payments,15/02/2012 00:00,430018,2878.57,REVENUE,Nene Valley Fostering Agency,
Peterborough,http://opendatacommunities.org/id/unitary-authority/peterborough,Peterborough City Council,Children's & Education Services - Children's Social Care,Children Looked After,Supplies and Services - Transfer Payments,15/02/2012 00:00,430020,3011.43,REVENUE,Nene Valley Fostering Agency,
Peterborough,http://opendatacommunities.org/id/unitary-authority/peterborough,Peterborough City Council,Planning Services,Economic Development,Employees,15/02/2012 00:00,430211,1332,REVENUE,Hays Specialist Recruitment Ltd,
Peterborough,http://opendatacommunities.org/id/unitary-authority/peterborough,Peterborough City Council,Planning Services,Economic Development,Employees,15/02/2012 00:00,430212,1332,REVENUE,Hays Specialist Recruitment Ltd,
Peterborough,http://opendatacommunities.org/id/unitary-authority/peterborough,Peterborough City Council,Planning Services,Economic Development,Employees,15/02/2012 00:00,430213,1332,REVENUE,Hays Specialist Recruitment Ltd,
Peterborough,http://opendatacommunities.org/id/unitary-authority/peterborough,Peterborough City Council,Planning Services,Economic Development,Employees,15/02/2012 00:00,430214,1332,REVENUE,Hays Specialist Recruitment Ltd,
Peterborough,http://opendatacommunities.org/id/unitary-authority/peterborough,Peterborough City Council,Planning Services,Economic Development,Employees,15/02/2012 00:00,430215,1332,REVENUE,Hays Specialist Recruitment Ltd,
Peterborough,http://opendatacommunities.org/id/unitary-authority/peterborough,Peterborough City Council,Children's & Education Services - Education,Non-School Funding,Employees,15/02/2012 00:00,430318,660,REVENUE,Mana Resourcing Ltd,
Peterborough,http://opendatacommunities.org/id/unitary-authority/peterborough,Peterborough City Council,Children's & Education Services - Education,Secondary,Employees,15/02/2012 00:00,430319,1081.08,REVENUE,Mana Resourcing Ltd,
Peterborough,http://opendatacommunities.org/id/unitary-authority/peterborough,Peterborough City Council,Children's & Education Services - Education,Non-School Funding,Employees,15/02/2012 00:00,430322,540,REVENUE,Mana Resourcing Ltd,
Peterborough,http://opendatacommunities.org/id/unitary-authority/peterborough,Peterborough City Council,More than one Service Area Category,More than one Service Division,Supplies and Services,15/02/2012 00:00,430306,1112.66,REVENUE,TNT Post Midlands Ltd,
Peterborough,http://opendatacommunities.org/id/unitary-authority/peterborough,Peterborough City Council,Support Services,Support Services,Premises,15/02/2012 00:00,431092,646.37,REVENUE,NB Real Estate,
Peterborough,http://opendatacommunities.org/id/unitary-authority/peterborough,Peterborough City Council,Children's & Education Services - Children's Social Care,Other Children's & Families Services,Employees,15/02/2012 00:00,431044,1575,REVENUE,Sanctuary Personnel Ltd,
Peterborough,http://opendatacommunities.org/id/unitary-authority/peterborough,Peterborough City Council,Children's & Education Services - Children's Social Care,Other Children's & Families Services,Employees,15/02/2012 00:00,431045,614.59,REVENUE,Sanctuary Personnel Ltd,
Peterborough,http://opendatacommunities.org/id/unitary-authority/peterborough,Peterborough City Council,Children's & Education Services - Children's Social Care,Other Children's & Families Services,Third Party Payments,15/02/2012 00:00,430993,6600,REVENUE,Blumint,
Peterborough,http://opendatacommunities.org/id/unitary-authority/peterborough,Peterborough City Council,Support Services,Support Services,Premises,15/02/2012 00:00,431091,995.81,REVENUE,NB Real Estate,
Peterborough,http://opendatacommunities.org/id/unitary-authority/peterborough,Peterborough City Council,Support Services,Support Services,Premises,15/02/2012 00:00,431268,794.42,REVENUE,NB Real Estate,
Peterborough,http://opendatacommunities.org/id/unitary-authority/peterborough,Peterborough City Council,Capital,Capital,Capital Pending Update to BS,15/02/2012 00:00,431670,2400,CAPITAL,Ringway Infrastructure Services,
Peterborough,http://opendatacommunities.org/id/unitary-authority/peterborough,Peterborough City Council,Children's & Education Services - Children's Social Care,Other Children's & Families Services,Employees,15/02/2012 00:00,431266,501.12,REVENUE,Randstad Care Ltd,
Peterborough,http://opendatacommunities.org/id/unitary-authority/peterborough,Peterborough City Council,Capital,Capital,Capital Pending Update to BS,15/02/2012 00:00,431295,3085.91,CAPITAL,Ringway Infrastructure Services,
Peterborough,http://opendatacommunities.org/id/unitary-authority/peterborough,Peterborough City Council,Children's & Education Services - Children's Social Care,Support Services & Management Costs,Supplies and Services,15/02/2012 00:00,431676,700,REVENUE,HM Courts and Tribunals Service (HMCTS),
Peterborough,http://opendatacommunities.org/id/unitary-authority/peterborough,Peterborough City Council,Children's & Education Services - Children's Social Care,Children Looked After,Employees,15/02/2012 00:00,431568,1120.08,REVENUE,Randstad Care Ltd,
Peterborough,http://opendatacommunities.org/id/unitary-authority/peterborough,Peterborough City Council,Children's & Education Services - Children's Social Care,Support Services & Management Costs,Supplies and Services,15/02/2012 00:00,431686,1900,REVENUE,HM Courts and Tribunals Service (HMCTS),
Peterborough,http://opendatacommunities.org/id/unitary-authority/peterborough,Peterborough City Council,Children's & Education Services - Children's Social Care,Support Services & Management Costs,Supplies and Services,15/02/2012 00:00,431687,1900,REVENUE,HM Courts and Tribunals Service (HMCTS),
Peterborough,http://opendatacommunities.org/id/unitary-authority/peterborough,Peterborough City Council,Children's & Education Services - Children's Social Care,Children Looked After,Supplies and Services - Transfer Payments,15/02/2012 00:00,431793,2945.49,REVENUE,Nene Valley Fostering Agency,
Peterborough,http://opendatacommunities.org/id/unitary-authority/peterborough,Peterborough City Council,Children's & Education Services - Children's Social Care,Children Looked After,Supplies and Services - Transfer Payments,15/02/2012 00:00,431799,2878.57,REVENUE,Pathway Care (West Wales) Ltd,
Peterborough,http://opendatacommunities.org/id/unitary-authority/peterborough,Peterborough City Council,Children's & Education Services - Children's Social Care,Children Looked After,Supplies and Services - Transfer Payments,15/02/2012 00:00,431804,3011.43,REVENUE,Pathway Care (West Wales) Ltd,
Peterborough,http://opendatacommunities.org/id/unitary-authority/peterborough,Peterborough City Council,Children's & Education Services - Education,Primary,Employees,15/02/2012 00:00,431832,954,REVENUE,Mana Resourcing Ltd,
Peterborough,http://opendatacommunities.org/id/unitary-authority/peterborough,Peterborough City Council,Children's & Education Services - Education,Primary,Employees,15/02/2012 00:00,431837,600.6,REVENUE,Mana Resourcing Ltd,
Peterborough,http://opendatacommunities.org/id/unitary-authority/peterborough,Peterborough City Council,Children's & Education Services - Education,Non-School Funding,Employees,15/02/2012 00:00,431838,1020,REVENUE,Mana Resourcing Ltd,
Peterborough,http://opendatacommunities.org/id/unitary-authority/peterborough,Peterborough City Council,Children's & Education Services - Education,Non-School Funding,Employees,15/02/2012 00:00,431844,954,REVENUE,Mana Resourcing Ltd,
Peterborough,http://opendatacommunities.org/id/unitary-authority/peterborough,Peterborough City Council,Children's & Education Services - Education,Secondary,Employees,15/02/2012 00:00,431890,8262,REVENUE,Mana Resourcing Ltd,
Peterborough,http://opendatacommunities.org/id/unitary-authority/peterborough,Peterborough City Council,Children's & Education Services - Education,Non-School Funding,Supplies and Services,15/02/2012 00:00,432506,10639.2,REVENUE,Continuum Care & Educ. Group.,
Peterborough,http://opendatacommunities.org/id/unitary-authority/peterborough,Peterborough City Council,Children's & Education Services - Education,Non-School Funding,Supplies and Services,15/02/2012 00:00,432508,2127.84,REVENUE,Continuum Care & Educ. Group.,
Peterborough,http://opendatacommunities.org/id/unitary-authority/peterborough,Peterborough City Council,Children's & Education Services - Education,Non-School Funding,Supplies and Services,15/02/2012 00:00,432509,10639.2,REVENUE,Continuum Care & Educ. Group.,
Peterborough,http://opendatacommunities.org/id/unitary-authority/peterborough,Peterborough City Council,Children's & Education Services - Education,Non-School Funding,Supplies and Services,15/02/2012 00:00,432510,10639.2,REVENUE,Continuum Care & Educ. Group.,
Peterborough,http://opendatacommunities.org/id/unitary-authority/peterborough,Peterborough City Council,Children's & Education Services - Education,Non-School Funding,Transport,15/02/2012 00:00,432516,660,REVENUE,Bedford Borough Council,
Peterborough,http://opendatacommunities.org/id/unitary-authority/peterborough,Peterborough City Council,Capital,Capital,Capital Pending Update to BS,15/02/2012 00:00,432253,194463.66,CAPITAL,Kier Eastern,
Peterborough,http://opendatacommunities.org/id/unitary-authority/peterborough,Peterborough City Council,Adult Social Care,Service Strategy,Supplies and Services,15/02/2012 00:00,432393,5970,REVENUE,Veredus,
Peterborough,http://opendatacommunities.org/id/unitary-authority/peterborough,Peterborough City Council,Children's & Education Services - Education,Secondary,Supplies and Services,15/02/2012 00:00,432431,630,REVENUE,M A Associates,
Peterborough,http://opendatacommunities.org/id/unitary-authority/peterborough,Peterborough City Council,Capital,Capital,Capital Pending Update to BS,15/02/2012 00:00,432433,48777.28,CAPITAL,Kier Eastern,
Peterborough,http://opendatacommunities.org/id/unitary-authority/peterborough,Peterborough City Council,Support Services,Support Services,Supplies and Services,15/02/2012 00:00,432462,7839.27,REVENUE,Browne Jacobson,
Peterborough,http://opendatacommunities.org/id/unitary-authority/peterborough,Peterborough City Council,Capital,Capital,Capital Pending Update to BS,15/02/2012 00:00,432435,108000,CAPITAL,Kier Eastern,
Peterborough,http://opendatacommunities.org/id/unitary-authority/peterborough,Peterborough City Council,Children's & Education Services - Children's Social Care,Children Looked After,More than one Expenses Type,15/02/2012 00:00,432705,1031.98,REVENUE,Clare Lodge Secure Unit,
Peterborough,http://opendatacommunities.org/id/unitary-authority/peterborough,Peterborough City Council,Children's & Education Services - Children's Social Care,More than one Service Division,Supplies and Services,15/02/2012 00:00,432714,1012.33,REVENUE,Children & Families Looked After Children,
Peterborough,http://opendatacommunities.org/id/unitary-authority/peterborough,Peterborough City Council,Children's & Education Services - Children's Social Care,Family Support Services,Supplies and Services,15/02/2012 00:00,432932,1148.22,REVENUE,Redacted Personal Data,
Peterborough,http://opendatacommunities.org/id/unitary-authority/peterborough,Peterborough City Council,Children's & Education Services - Children's Social Care,Children Looked After,Supplies and Services,15/02/2012 00:00,432701,615,REVENUE,Bridgegate Drug Services,
Peterborough,http://opendatacommunities.org/id/unitary-authority/peterborough,Peterborough City Council,Planning Services,Economic Development,Third Party Payments,15/02/2012 00:00,432703,4500,REVENUE,Peterborough Womens Centre,
Peterborough,http://opendatacommunities.org/id/unitary-authority/peterborough,Peterborough City Council,Deficit/(Surplus) on Trading Undertakings,Trading Account Surpluses & Deficits,Supplies and Services,15/02/2012 00:00,432707,816.24,REVENUE,Barron Clark Castings Ltd,
Peterborough,http://opendatacommunities.org/id/unitary-authority/peterborough,Peterborough City Council,Deficit/(Surplus) on Trading Undertakings,Trading Account Surpluses & Deficits,Supplies and Services,15/02/2012 00:00,432708,771,REVENUE,Barron Clark Castings Ltd,
Peterborough,http://opendatacommunities.org/id/unitary-authority/peterborough,Peterborough City Council,Deficit/(Surplus) on Trading Undertakings,Trading Account Surpluses & Deficits,Supplies and Services,15/02/2012 00:00,432709,892.03,REVENUE,Barron Clark Castings Ltd,
Peterborough,http://opendatacommunities.org/id/unitary-authority/peterborough,Peterborough City Council,Deficit/(Surplus) on Trading Undertakings,Trading Account Surpluses & Deficits,Supplies and Services,15/02/2012 00:00,432711,1542,REVENUE,Barron Clark Castings Ltd,
Peterborough,http://opendatacommunities.org/id/unitary-authority/peterborough,Peterborough City Council,Deficit/(Surplus) on Trading Undertakings,Trading Account Surpluses & Deficits,Supplies and Services,15/02/2012 00:00,432712,3523.2,REVENUE,Barron Clark Castings Ltd,
Peterborough,http://opendatacommunities.org/id/unitary-authority/peterborough,Peterborough City Council,Deficit/(Surplus) on Trading Undertakings,Trading Account Surpluses & Deficits,Supplies and Services,15/02/2012 00:00,432713,2360.78,REVENUE,Barron Clark Castings Ltd,
Peterborough,http://opendatacommunities.org/id/unitary-authority/peterborough,Peterborough City Council,Children's & Education Services - Children's Social Care,Children Looked After,Supplies and Services - Transfer Payments,15/02/2012 00:00,432884,529.9,REVENUE,Redacted Personal Data,
Peterborough,http://opendatacommunities.org/id/unitary-authority/peterborough,Peterborough City Council,Children's & Education Services - Children's Social Care,Children Looked After,Supplies and Services - Transfer Payments,15/02/2012 00:00,432885,529.9,REVENUE,Redacted Personal Data,
Peterborough,http://opendatacommunities.org/id/unitary-authority/peterborough,Peterborough City Council,Children's & Education Services - Children's Social Care,Children Looked After,Supplies and Services - Transfer Payments,15/02/2012 00:00,432886,560.98,REVENUE,Redacted Personal Data,
Peterborough,http://opendatacommunities.org/id/unitary-authority/peterborough,Peterborough City Council,Children's & Education Services - Children's Social Care,Children Looked After,Supplies and Services - Transfer Payments,15/02/2012 00:00,432950,560.98,REVENUE,Redacted Personal Data,
Peterborough,http://opendatacommunities.org/id/unitary-authority/peterborough,Peterborough City Council,Children's & Education Services - Children's Social Care,Children Looked After,Supplies and Services - Transfer Payments,15/02/2012 00:00,432955,885.08,REVENUE,Redacted Personal Data,
Peterborough,http://opendatacommunities.org/id/unitary-authority/peterborough,Peterborough City Council,Children's & Education Services - Children's Social Care,Children Looked After,Supplies and Services - Transfer Payments,15/02/2012 00:00,432957,885.08,REVENUE,Redacted Personal Data,
Peterborough,http://opendatacommunities.org/id/unitary-authority/peterborough,Peterborough City Council,Children's & Education Services - Children's Social Care,Children Looked After,Supplies and Services - Transfer Payments,15/02/2012 00:00,432958,885.08,REVENUE,Redacted Personal Data,
Peterborough,http://opendatacommunities.org/id/unitary-authority/peterborough,Peterborough City Council,Children's & Education Services - Children's Social Care,Children Looked After,Supplies and Services - Transfer Payments,15/02/2012 00:00,432959,885.08,REVENUE,Redacted Personal Data,
Peterborough,http://opendatacommunities.org/id/unitary-authority/peterborough,Peterborough City Council,Children's & Education Services - Children's Social Care,Children Looked After,Supplies and Services - Transfer Payments,15/02/2012 00:00,432960,885.08,REVENUE,Redacted Personal Data,
Peterborough,http://opendatacommunities.org/id/unitary-authority/peterborough,Peterborough City Council,Children's & Education Services - Children's Social Care,Children Looked After,Supplies and Services - Transfer Payments,15/02/2012 00:00,432964,560.98,REVENUE,Redacted Personal Data,
Peterborough,http://opendatacommunities.org/id/unitary-authority/peterborough,Peterborough City Council,Children's & Education Services - Children's Social Care,Children Looked After,Supplies and Services - Transfer Payments,15/02/2012 00:00,432975,653.87,REVENUE,Redacted Personal Data,
Peterborough,http://opendatacommunities.org/id/unitary-authority/peterborough,Peterborough City Council,Children's & Education Services - Children's Social Care,Other Children's & Families Services,Supplies and Services - Transfer Payments,15/02/2012 00:00,432756,600,REVENUE,Redacted Personal Data,
Peterborough,http://opendatacommunities.org/id/unitary-authority/peterborough,Peterborough City Council,Children's & Education Services - Children's Social Care,Other Children's & Families Services,Supplies and Services - Transfer Payments,15/02/2012 00:00,432757,613.6,REVENUE,Redacted Personal Data,
Peterborough,http://opendatacommunities.org/id/unitary-authority/peterborough,Peterborough City Council,Housing Services,Private Sector Housing Renewal,Third Party Payments,15/02/2012 00:00,432717,4690,REVENUE,Age Concern Peterborough.,
Peterborough,http://opendatacommunities.org/id/unitary-authority/peterborough,Peterborough City Council,Deficit/(Surplus) on Trading Undertakings,Trading Account Surpluses & Deficits,Supplies and Services,15/02/2012 00:00,432718,1542,REVENUE,Barron Clark Castings Ltd,
Peterborough,http://opendatacommunities.org/id/unitary-authority/peterborough,Peterborough City Council,Deficit/(Surplus) on Trading Undertakings,Trading Account Surpluses & Deficits,Supplies and Services,15/02/2012 00:00,432719,1757.88,REVENUE,Barron Clark Castings Ltd,
Peterborough,http://opendatacommunities.org/id/unitary-authority/peterborough,Peterborough City Council,Deficit/(Surplus) on Trading Undertakings,Trading Account Surpluses & Deficits,Supplies and Services,15/02/2012 00:00,432720,1542,REVENUE,Barron Clark Castings Ltd,
Peterborough,http://opendatacommunities.org/id/unitary-authority/peterborough,Peterborough City Council,Deficit/(Surplus) on Trading Undertakings,Trading Account Surpluses & Deficits,Supplies and Services,15/02/2012 00:00,432721,868.8,REVENUE,Barron Clark Castings Ltd,
Peterborough,http://opendatacommunities.org/id/unitary-authority/peterborough,Peterborough City Council,Children's & Education Services - Children's Social Care,Children Looked After,Supplies and Services - Transfer Payments,15/02/2012 00:00,432976,529.9,REVENUE,Redacted Personal Data,
Peterborough,http://opendatacommunities.org/id/unitary-authority/peterborough,Peterborough City Council,Children's & Education Services - Children's Social Care,Children Looked After,Supplies and Services - Transfer Payments,15/02/2012 00:00,432990,560.98,REVENUE,Redacted Personal Data,
Peterborough,http://opendatacommunities.org/id/unitary-authority/peterborough,Peterborough City Council,Children's & Education Services - Children's Social Care,Children Looked After,Supplies and Services - Transfer Payments,15/02/2012 00:00,432996,560.98,REVENUE,Redacted Personal Data,
Peterborough,http://opendatacommunities.org/id/unitary-authority/peterborough,Peterborough City Council,Children's & Education Services - Children's Social Care,Children Looked After,Supplies and Services - Transfer Payments,15/02/2012 00:00,432888,500.29,REVENUE,Redacted Personal Data,
Peterborough,http://opendatacommunities.org/id/unitary-authority/peterborough,Peterborough City Council,Children's & Education Services - Children's Social Care,Children Looked After,Supplies and Services - Transfer Payments,15/02/2012 00:00,432889,707.42,REVENUE,Redacted Personal Data,
Peterborough,http://opendatacommunities.org/id/unitary-authority/peterborough,Peterborough City Council,Children's & Education Services - Children's Social Care,Children Looked After,Supplies and Services - Transfer Payments,15/02/2012 00:00,432890,529.9,REVENUE,Redacted Personal Data,
Peterborough,http://opendatacommunities.org/id/unitary-authority/peterborough,Peterborough City Council,Children's & Education Services - Children's Social Care,Children Looked After,Supplies and Services - Transfer Payments,15/02/2012 00:00,432891,529.9,REVENUE,Redacted Personal Data,
Peterborough,http://opendatacommunities.org/id/unitary-authority/peterborough,Peterborough City Council,Children's & Education Services - Children's Social Care,Children Looked After,Supplies and Services - Transfer Payments,15/02/2012 00:00,432901,560.98,REVENUE,Redacted Personal Data,
Peterborough,http://opendatacommunities.org/id/unitary-authority/peterborough,Peterborough City Council,Children's & Education Services - Children's Social Care,Children Looked After,Supplies and Services - Transfer Payments,15/02/2012 00:00,432902,885.08,REVENUE,Redacted Personal Data,
Peterborough,http://opendatacommunities.org/id/unitary-authority/peterborough,Peterborough City Council,Children's & Education Services - Children's Social Care,Children Looked After,Supplies and Services - Transfer Payments,15/02/2012 00:00,432904,571.83,REVENUE,Redacted Personal Data,
Peterborough,http://opendatacommunities.org/id/unitary-authority/peterborough,Peterborough City Council,Children's & Education Services - Children's Social Care,Children Looked After,Supplies and Services - Transfer Payments,15/02/2012 00:00,432905,560.98,REVENUE,Redacted Personal Data,
Peterborough,http://opendatacommunities.org/id/unitary-authority/peterborough,Peterborough City Council,Children's & Education Services - Children's Social Care,Children Looked After,Supplies and Services - Transfer Payments,15/02/2012 00:00,432907,529.9,REVENUE,Redacted Personal Data,
Peterborough,http://opendatacommunities.org/id/unitary-authority/peterborough,Peterborough City Council,Children's & Education Services - Children's Social Care,Children Looked After,Supplies and Services - Transfer Payments,15/02/2012 00:00,432908,560.98,REVENUE,Redacted Personal Data,
Peterborough,http://opendatacommunities.org/id/unitary-authority/peterborough,Peterborough City Council,Children's & Education Services - Children's Social Care,Children Looked After,Supplies and Services - Transfer Payments,15/02/2012 00:00,432864,616.18,REVENUE,Redacted Personal Data,
Peterborough,http://opendatacommunities.org/id/unitary-authority/peterborough,Peterborough City Council,Children's & Education Services - Children's Social Care,Children Looked After,Supplies and Services - Transfer Payments,15/02/2012 00:00,432865,560.98,REVENUE,Redacted Personal Data,
Peterborough,http://opendatacommunities.org/id/unitary-authority/peterborough,Peterborough City Council,Children's & Education Services - Children's Social Care,Children Looked After,Supplies and Services - Transfer Payments,15/02/2012 00:00,432866,560.98,REVENUE,Redacted Personal Data,
Peterborough,http://opendatacommunities.org/id/unitary-authority/peterborough,Peterborough City Council,Children's & Education Services - Children's Social Care,Children Looked After,Supplies and Services - Transfer Payments,15/02/2012 00:00,432867,529.9,REVENUE,Redacted Personal Data,
Peterborough,http://opendatacommunities.org/id/unitary-authority/peterborough,Peterborough City Council,Children's & Education Services - Children's Social Care,Children Looked After,Supplies and Services - Transfer Payments,15/02/2012 00:00,432868,560.98,REVENUE,Redacted Personal Data,
Peterborough,http://opendatacommunities.org/id/unitary-authority/peterborough,Peterborough City Council,Children's & Education Services - Children's Social Care,Children Looked After,Supplies and Services - Transfer Payments,15/02/2012 00:00,432869,529.9,REVENUE,Redacted Personal Data,
Peterborough,http://opendatacommunities.org/id/unitary-authority/peterborough,Peterborough City Council,Children's & Education Services - Children's Social Care,Children Looked After,Supplies and Services - Transfer Payments,15/02/2012 00:00,432871,707.42,REVENUE,Redacted Personal Data,
Peterborough,http://opendatacommunities.org/id/unitary-authority/peterborough,Peterborough City Council,Children's & Education Services - Children's Social Care,Children Looked After,Supplies and Services - Transfer Payments,15/02/2012 00:00,432872,529.9,REVENUE,Redacted Personal Data,
Peterborough,http://opendatacommunities.org/id/unitary-authority/peterborough,Peterborough City Council,Children's & Education Services - Children's Social Care,Children Looked After,Supplies and Services - Transfer Payments,15/02/2012 00:00,432873,560.98,REVENUE,Redacted Personal Data,
Peterborough,http://opendatacommunities.org/id/unitary-authority/peterborough,Peterborough City Council,Children's & Education Services - Children's Social Care,Children Looked After,Supplies and Services - Transfer Payments,15/02/2012 00:00,432874,529.9,REVENUE,Redacted Personal Data,
Peterborough,http://opendatacommunities.org/id/unitary-authority/peterborough,Peterborough City Council,Children's & Education Services - Children's Social Care,Children Looked After,Supplies and Services - Transfer Payments,15/02/2012 00:00,432875,529.9,REVENUE,Redacted Personal Data,
Peterborough,http://opendatacommunities.org/id/unitary-authority/peterborough,Peterborough City Council,Children's & Education Services - Children's Social Care,Children Looked After,Supplies and Services - Transfer Payments,15/02/2012 00:00,432876,560.98,REVENUE,Redacted Personal Data,
Peterborough,http://opendatacommunities.org/id/unitary-authority/peterborough,Peterborough City Council,Children's & Education Services - Children's Social Care,Children Looked After,Supplies and Services - Transfer Payments,15/02/2012 00:00,432877,529.9,REVENUE,Redacted Personal Data,
Peterborough,http://opendatacommunities.org/id/unitary-authority/peterborough,Peterborough City Council,Children's & Education Services - Children's Social Care,Children Looked After,Supplies and Services - Transfer Payments,15/02/2012 00:00,432879,560.98,REVENUE,Redacted Personal Data,
